Cogmind - Beta 13 *** ADVENTURER MODE // 2024.05.11 @ 10:55:29 // Winter2019/RPGLIKE Player: XorOwl Result: Destroyed by G-73 Enforcer with Phase Gun Performance ------------- Evolutions (8) 4000 Regions Visited (30) 6000 Robots Destroyed (803) 4015 Value Destroyed (41415) 41415 Prototype IDs (83) 1660 Alien Tech Used (2) 400 Bonus (20713) 20713 TOTAL SCORE: 78203 Bonus ------- Triggered High Security 500 High Alert Combat Kills 12138 Follower Combat Kills 5043 Entered Garrisons 800 Used RIF Installer 2500 Entered DSFs 500 Aligned with FarCom 300 Friendly Fire -1068 Cogmind --------- Core Integrity 0/1200 Matter 235/400 Energy 525/760 System Corruption 0% Temperature Warm (159) Movement Flying (42) Location -2/Research Parts ------- > --- POWER (2) -------- Improved Deuterium Engine Light Antimatter Reactor > --- PROPULSION (5) --- Impulse Thruster Flying Fortress v7 > --- UTILITY (10) ----- Advanced Power Amplifier Advanced Weight Redist. System Advanced Signal Interpreter Core Analyzer Experimental Core Analyzer Improved Transmission Jammer Graphene Brace Improved Force Field Advanced Hacking Suite Advanced Corruption Screen > --- WEAPON (4) ------- Enhanced Nova Cannon Hardcell Cannon Linear Accelerator > --- INVENTORY (4) ---- Advanced Terrain Scanner Advanced Thermal Defense Suite Improved Remote Force Field Authchip [R/Combat] Peak State ------------ > --- POWER ------------ Improved Deuterium Engine Light Antimatter Reactor > --- PROPULSION ------- Impulse Thruster Flying Fortress v7 > --- UTILITY ---------- Advanced Power Amplifier Advanced Weight Redist. System Advanced Signal Interpreter Core Analyzer Experimental Core Analyzer Improved Transmission Jammer Graphene Brace Improved Force Field Advanced Hacking Suite Advanced Corruption Screen > --- WEAPON ----------- Enhanced Nova Cannon Hardcell Cannon Linear Accelerator > --- INVENTORY -------- Advanced Terrain Scanner Advanced Thermal Defense Suite Improved Remote Force Field Authchip [R/Combat] [Rating: 139] Favorites ----------- Power Improved Deuterium Engine Engine Improved Deuterium Engine Power Core Light Nuclear Core Reactor Heavy Antimatter Reactor Propulsion Flying Fortress v7 Leg Aluminum Leg Wheel Wheel Flight Unit Flying Fortress v7 Utility Core Analyzer Device Improved Terrain Scanner Storage High-capacity Matter Pod Processor Core Analyzer Hackware Relay Coupler [Sentry] Weapon Heavy Ion Cannon Energy Gun Quantum Rifle Energy Cannon Heavy Ion Cannon Ballistic Gun Heavy Assault Rifle Ballistic Cannon Linear Accelerator Launcher Missile Launcher Special Weapon Remote Datajack Slashing Weapon Mining Claw Special Melee Weapon Improved Datajack Build | -11 -10 -10 -9 -9 -9 -8 -8 -8 -7 -7 -7 -7 -7 -7 -6 -6 -6 -6 -6 -5 -5 -5 -5 -4 -4 -4 -4 -3 -3 -2 ------- Run | Yrd Mat Min Mat Min Exi Min Mat Gar Fac Gar Fac Low Low Zio Pro Fac Gar Fac Gar Fac Upp Upp Zhi Pro Fac Arm Lab Res DSF Res Slots Evolved 16 | 5 1 . 3 . 1 . . 1 1 1 . . . . . 1 . 1 . . . . . . . . . . . 1 Power . | . . . . . . . . . . . . . . . . . . . . . . . . . . . . . . . Propulsion 4 | 2 . . . . 1 . . . . . . . . . . . . . . . . . . . . . . . . 1 Utility 9 | 2 1 . 2 . . . . 1 . 1 . . . . . 1 . 1 . . . . . . . . . . . . Weapon 3 | 1 . . 1 . . . . . 1 . . . . . . . . . . . . . . . . . . . . . Parts Attached 219 | 9 6 4 17 3 1 2 5 14 23 3 11 12 3 . 6 25 9 2 12 8 3 4 3 . 17 4 . . 2 11 Power 13 | 1 . 1 2 1 . 1 . . 1 . . . . . . 1 . . . . . 1 1 . . 1 . . 1 1 Engine 7 | 1 . 1 2 1 . . . . 1 . . . . . . . . . . . . . . . . 1 . . . . Core 3 | . . . . . . 1 . . . . . . . . . 1 . . . . . 1 . . . . . . . . Reactor 3 | . . . . . . . . . . . . . . . . . . . . . . . 1 . . . . . 1 1 Propulsion 11 | 4 . . 2 1 1 . . . 1 . . . . . . . . . . . . . . . . . . . . 2 Treads . | . . . . . . . . . . . . . . . . . . . . . . . . . . . . . . . Leg 1 | 1 . . . . . . . . . . . . . . . . . . . . . . . . . . . . . . Wheel 5 | 3 . . 1 1 . . . . . . . . . . . . . . . . . . . . . . . . . . Hover . | . . . . . . . . . . . . . . . . . . . . . . . . . . . . . . . Flight 5 | . . . 1 . 1 . . . 1 . . . . . . . . . . . . . . . . . . . . 2 Utility 112 | 2 2 2 2 . . . 1 10 3 3 6 6 1 . 3 14 5 2 12 6 3 3 2 . 15 2 . . . 7 Device 80 | 2 . 1 1 . . . . 4 3 . 4 5 1 . 3 11 3 2 7 4 3 3 1 . 15 1 . . . 6 Storage 1 | . . 1 . . . . . . . . . . . . . . . . . . . . . . . . . . . . Processor 9 | . 2 . . . . . 1 . . 1 . 1 . . . 1 1 . . 1 . . . . . . . . . 1 Hackware 22 | . . . 1 . . . . 6 . 2 2 . . . . 2 1 . 5 1 . . 1 . . 1 . . . . Protection . | . . . . . . . . . . . . . . . . . . . . . . . . . . . . . . . Artifact . | . . . . . . . . . . . . . . . . . . . . . . . . . . . . . . . Weapon 83 | 2 4 1 11 1 . 1 4 4 18 . 5 6 2 . 3 10 4 . . 2 . . . . 2 1 . . 1 1 Energy Gun 9 | . . . 2 . . . 1 . 2 . . . . . . 1 1 . . . . . . . 1 1 . . . . Energy Cannon 8 | . . . 2 . . . 1 . 1 . . 1 . . . 2 . . . . . . . . . . . . . 1 Ballistic Gun 7 | 2 2 . 3 . . . . . . . . . . . . . . . . . . . . . . . . . . . Ballistic Cannon 25 | . 1 . 2 . . 1 1 2 8 . 1 1 . . 1 3 1 . . 1 . . . . 1 . . . 1 . Launcher 17 | . . 1 2 1 . . 1 1 1 . 3 2 1 . 1 2 1 . . . . . . . . . . . . . Special Weapon 14 | . . . . . . . . . 5 . 1 2 1 . 1 2 1 . . 1 . . . . . . . . . . Impact Weapon . | . . . . . . . . . . . . . . . . . . . . . . . . . . . . . . . Slashing Weapon 1 | . 1 . . . . . . . . . . . . . . . . . . . . . . . . . . . . . Piercing Weapon . | . . . . . . . . . . . . . . . . . . . . . . . . . . . . . . . Special Melee Weapon 2 | . . . . . . . . 1 1 . . . . . . . . . . . . . . . . . . . . . Unidentified Prototypes 22 | . . . 4 . . . 1 . 2 . . 3 1 . . 2 . . . 1 . . 2 . 3 . . . . 3 Parts Lost 5 | . . . 1 . . . . . . . . . . . . . 1 . . . . 1 . . 1 . . . . 1 Power 2 | . . . 1 . . . . . . . . . . . . . . . . . . . . . . . . . . 1 Propulsion . | . . . . . . . . . . . . . . . . . . . . . . . . . . . . . . . Utility 3 | . . . . . . . . . . . . . . . . . 1 . . . . 1 . . 1 . . . . . Weapon . | . . . . . . . . . . . . . . . . . . . . . . . . . . . . . . . Highest Loss Streak 1 | . . . 1 . . . . . . . . . . . . . 1 . . . . 1 . . 1 . . . . 1 To Critical Strikes . | . . . . . . . . . . . . . . . . . . . . . . . . . . . . . . . Average Slot Usage (%) 82 | . 97 100 97 99 96 78 77 77 80 78 80 80 74 66 66 80 84 83 83 85 85 85 84 85 84 84 85 85 84 78 Engine 4 | . 10 10 7 6 7 . . . 3 5 5 5 5 5 5 5 5 5 5 5 5 5 5 5 5 4 5 5 5 4 Core 2 | . . . . . . 6 7 6 2 . . . . . . 4 5 5 5 5 5 5 2 . . . . . . . Reactor 1 | . . . . . . . . . . . . . . . . . . . . . . . 2 5 5 5 5 5 4 3 Wheel 2 | . 32 30 24 22 19 . . . . . . . . . . . . . . . . . . . . . . . . . Flight 4 | . . . . . . 7 7 6 6 5 5 5 5 5 5 5 5 5 5 5 5 5 5 5 5 5 5 5 5 7 Device 17 | . 21 19 24 23 22 21 21 20 13 17 15 16 13 5 10 19 21 20 11 8 10 12 16 15 18 24 25 25 25 23 Storage 1 | . . 10 7 7 7 7 7 2 . . . . . . . . . . . . . . . . . . . . . . Processor 13 | . 9 10 7 7 7 7 7 6 6 10 11 11 16 16 16 15 18 20 20 20 20 20 20 20 20 20 20 20 20 19 Hackware 12 | . . . 1 7 7 7 7 13 25 11 17 16 11 11 5 9 7 5 17 21 20 17 12 15 11 5 5 5 5 4 Energy Gun 4 | . . . 2 . . . 1 6 6 5 5 5 5 5 5 1 5 5 5 5 5 5 5 5 5 4 5 5 5 . Energy Cannon 5 | . . . 3 7 7 7 5 6 6 5 5 5 5 5 5 8 5 5 5 5 5 5 5 5 5 5 5 5 5 4 Ballistic Gun 1 | . 12 3 6 7 7 7 6 . . . . . . . . . . . . . . . . . . . . . . . Ballistic Cannon 5 | . 8 10 6 6 . 7 7 5 5 5 3 4 4 . 4 4 5 5 5 5 5 5 5 5 5 5 5 5 5 9 Special Weapon 2 | . . . . . . . . . 2 5 4 . . 5 . 4 4 5 5 5 5 5 5 5 5 5 5 5 4 . Naked Turns . | . . . . . . . . . . . . . . . . . . . . . . . . . . . . . . . Heaviest Build 74 | 7 10 17 25 25 25 24 24 29 37 37 37 46 44 39 49 50 62 66 62 60 60 71 71 62 65 64 64 64 67 74 Greatest Support 76 | 30 30 30 30 30 50 50 50 50 50 50 50 50 50 50 50 59 64 64 64 64 64 64 64 64 69 69 69 69 69 76 Greatest Overweight (x) 8 | . . . 1 . . . . 8 7 . . . . . . . . 1 1 1 . 1 1 . . . . . . . Average Overweight (x) . | . . . . . . . . . 1 . . . . . . . . . . . . . . . . . . . . . Largest Inventory Capacity 4 | . 1 1 2 2 2 2 2 4 4 4 4 4 4 4 4 4 4 4 4 4 4 4 4 4 4 4 4 4 4 4 Average Capacity 3 | . . 1 1 2 2 2 2 3 4 4 4 4 4 4 4 4 4 4 4 4 4 4 4 4 4 4 4 4 4 4 Most Carried 4 | . 1 1 2 2 2 2 2 3 4 4 4 4 4 4 4 4 4 4 4 4 4 4 4 4 4 3 3 3 4 4 Average Carried 3 | . . . 1 2 2 2 2 2 3 3 3 4 3 4 3 3 3 3 3 3 3 3 3 4 3 3 3 3 3 4 Final Capacity 4 | . 1 1 2 2 2 2 2 4 4 4 4 4 4 4 4 4 4 4 4 4 4 4 4 4 4 4 4 4 4 4 Final Carried 4 | . 1 1 2 2 2 2 2 3 3 4 4 4 4 4 3 4 3 4 4 3 4 2 4 4 3 3 3 3 4 4 Class Distribution -------------------- 76% | Hacker-Scout 8% | Hacker-Gunner 7% | Hacker-Skirmisher 3% | Mutant Dominant Class ---------------- Mutant | -10/Materials Mutant | -10/Mines Hacker-Gunner | -9/Materials Hacker-Gunner | -9/Mines Hacker-Gunner | -9/Exiles Hacker-Scout | -8/Mines Hacker-Scout | -8/Materials Hacker-Scout | -8/Garrison Hacker-Scout | -7/Factory Hacker-Scout | -7/Garrison Commander-Scout | -7/Factory Hacker-Scout | -7/Lower Caves Hacker-Scout | -7/Lower Caves Hacker-Scout | -7/Zion Hacker-Scout | -6/Proximity Caves Hacker-Scout | -6/Factory Hacker-Scout | -6/Garrison Hacker-Scout | -6/Factory Hacker-Scout | -6/Garrison Hacker-Scout | -5/Factory Hacker-Scout | -5/Upper Caves Hacker-Scout | -5/Upper Caves Hacker-Scout | -5/Zhirov Hacker-Scout | -4/Proximity Caves Hacker-Scout | -4/Factory Hacker-Scout | -4/Armory Hacker-Scout | -4/Lab Hacker-Scout | -3/Research Hacker-Scout | -3/DSF Hacker-Scout | -2/Research Resources | -11 -10 -10 -9 -9 -9 -8 -8 -8 -7 -7 -7 -7 -7 -7 -6 -6 -6 -6 -6 -5 -5 -5 -5 -4 -4 -4 -4 -3 -3 -2 ----------- Run | Yrd Mat Min Mat Min Exi Min Mat Gar Fac Gar Fac Low Low Zio Pro Fac Gar Fac Gar Fac Upp Upp Zhi Pro Fac Arm Lab Res DSF Res Matter Collected 18107 | 294 274 412 1318 167 . 131 483 499 1713 491 483 276 520 . 1684 1504 396 452 660 543 285 113 72 292 1607 1173 . . 226 2039 Remotely 2430 | . . 30 1268 167 . 131 483 351 . . . . . . . . . . . . . . . . . . . . . . Salvage Created 30532 | 200 253 . 1631 223 . 175 1324 896 3831 945 1126 192 623 . 583 3534 524 971 1365 1562 357 65 318 958 3084 2528 . . . 3264 Parts 1583 | 13 36 . 130 18 . 15 57 49 188 54 45 30 24 . 30 149 30 55 78 63 19 . 4 50 159 121 . . 7 159 Haulers Intercepted 30 | . 2 . 6 . . . 4 . 6 . 2 . . . . 5 . . . . . . . . 4 . . . . 1 Recyclers Shooed 7 | . . . 1 1 . . . . 1 . . . . . . 2 . 1 . . . . . . . . . . . 1 Parts Field Recycled . | . . . . . . . . . . . . . . . . . . . . . . . . . . . . . . . Retrieved Matter . | . . . . . . . . . . . . . . . . . . . . . . . . . . . . . . . Parts Self-Destructed 159 | . . . . . . . . . . . . 26 22 . 30 . . . . . 23 4 3 51 . . . . . . Prevented 8 | . . . . . . . . . . . . 7 . . . . . . . . . . . 1 . . . . . . Kills | -11 -10 -10 -9 -9 -9 -8 -8 -8 -7 -7 -7 -7 -7 -7 -6 -6 -6 -6 -6 -5 -5 -5 -5 -4 -4 -4 -4 -3 -3 -2 ------- Run | Yrd Mat Min Mat Min Exi Min Mat Gar Fac Gar Fac Low Low Zio Pro Fac Gar Fac Gar Fac Upp Upp Zhi Pro Fac Arm Lab Res DSF Res Combat Hostiles Destroyed 657 | . 6 . 43 7 . 8 21 29 80 32 19 9 16 . 14 51 12 23 36 30 12 1 . 22 72 58 . . 2 54 Guns 165 | . 5 . 18 1 . . 11 11 19 6 6 1 3 . 3 4 1 9 11 7 5 . . 5 22 16 . . . 1 Cannons 448 | . 1 . 18 6 . 4 10 16 59 25 10 7 7 . 10 41 9 14 25 22 7 1 . 17 44 41 . . 2 52 AOE 35 | . . . 7 . . 4 . 2 1 . 3 1 5 . 1 3 2 . . 1 . . . . 5 . . . . . Classes Destroyed 23 | 2 5 . 3 1 . 2 1 1 1 . 1 1 . . . 3 1 1 . . . . . . . . . . . . Worker 32 | . 4 . 5 . . 1 1 . 9 . 3 . . . . 4 . . . . . . . . 3 . . . . 2 Builder 24 | . . . 2 . . . . . 13 . . . . . . 2 . 1 . 3 . . . . . . . . . 3 Tunneler 14 | 5 3 . . 2 . 1 . . . . 1 . . . . . . . . . . . . . 1 . . . . 1 Hauler 30 | . 2 . 6 . . . 4 . 6 . 2 . . . . 5 . . . . . . . . 4 . . . . 1 Recycler 14 | 1 . . 2 . . . 4 . . . . . . . . 2 . . . . . . . . 1 . . . . 4 Carrier 1 | . . . . . . . . . . . . . . . . 1 . . . . . . . . . . . . . . Mechanic 7 | . 1 . 1 . . . . . 1 1 . . . . . 1 . . . . . . . . 1 . . . . 1 Operator 8 | . . . . . . . 1 . 2 . . . . . . . . 1 . . . . . . 2 . . . . 2 Watcher 42 | . 3 . 5 . . . 3 . 5 . 2 . . . . 7 . 1 . 1 . . . . 6 3 . . . 6 Swarmer 155 | . 6 . 12 3 . 4 11 8 3 13 4 1 4 . . 6 . 1 21 4 4 . . 4 25 13 . . . 8 Cutter 3 | . . . . . . . . . . . . . . . . 1 . . 2 . . . . . . . . . . . Saboteur 5 | . . . . . . . . . . . . . . . . . . 1 . 2 . . . . 1 1 . . . . Grunt 227 | . . . 22 2 . 2 6 9 48 8 6 4 5 . 8 22 5 11 3 12 3 . . 8 12 21 . . 1 9 Brawler 26 | . . . . . . 1 . . 5 1 . . . . . 4 . . 2 3 3 . . 3 2 2 . . . . Duelist 22 | . . . . 2 . . . . 4 1 1 . 1 . 2 3 . 2 1 2 . . . 1 . 2 . . . . Protector 3 | . . . . . . . . . . . 2 . . . . 1 . . . . . . . . . . . . . . Sentry 69 | . . . 9 . . . 3 9 8 1 . 1 2 . . 6 2 1 3 1 . . . 2 12 3 . . . 6 Demolisher 9 | . . . . . . . . . 3 . 1 . . . . . . 1 . 3 . . . . . . . . . 1 Specialist 6 | . . . . . . . . . . . . . . . . . 2 . . . . . . . . 4 . . . . Hunter 53 | . . . . . . 1 1 2 2 3 1 . 3 . 3 1 2 2 2 2 2 . . 2 5 6 . . . 13 Programmer 67 | . . . . . . . . 1 8 5 4 2 1 . . 7 1 2 2 1 . . . 2 12 5 . . . 14 Heavy 6 | . . . . . . . . . . . . . . . . 2 . 1 . . . . . . 1 . . . 1 1 Behemoth 8 | . . . . . . . . . . . . 1 . . 1 . . 1 . . . . . . 2 1 . . . 2 Thug 1 | . . . . . . . . . . . . . . . . . . . . . . 1 . . . . . . . . Best Kill Streak 16 | 6 4 . 7 6 . 6 11 8 7 13 5 3 5 . 5 6 6 6 6 13 4 1 . 7 10 15 . . 1 16 Combat Bots Only 12 | . 3 . 4 3 . 4 7 8 7 11 4 3 5 . 5 4 6 6 6 10 4 1 . 7 8 12 . . 1 11 Max Kills in Single Turn 6 | 1 2 . 2 1 . 6 3 2 3 2 3 1 3 . 2 5 1 2 1 3 1 1 . 1 5 2 . . 1 2 Gunslinging . | . . . . . . . . . . . . . . . . . . . . . . . . . . . . . . . Exploded 4 | . . . 2 . . 4 . 2 1 . 1 1 3 . 1 2 1 . . 1 . . . . 4 . . . . . Melee . | . . . . . . . . . . . . . . . . . . . . . . . . . . . . . . . Uniques/NPCs Destroyed . | . . . . . . . . . . . . . . . . . . . . . . . . . . . . . . . Combat | -11 -10 -10 -9 -9 -9 -8 -8 -8 -7 -7 -7 -7 -7 -7 -6 -6 -6 -6 -6 -5 -5 -5 -5 -4 -4 -4 -4 -3 -3 -2 -------- Run | Yrd Mat Min Mat Min Exi Min Mat Gar Fac Gar Fac Low Low Zio Pro Fac Gar Fac Gar Fac Upp Upp Zhi Pro Fac Arm Lab Res DSF Res Hostile Shots Fired 3525 | . 18 . 126 29 . 16 60 168 458 123 96 28 66 11 59 285 60 202 231 160 65 7 . 98 386 266 . . 25 482 Missed 1444 | . 3 . 44 7 . 5 24 47 201 53 40 12 27 7 20 130 22 90 97 51 28 1 . 52 152 111 . . 15 205 Damage Taken 22585 | . 202 . 896 247 . 158 310 996 1994 555 748 179 348 . 536 1742 271 604 851 1172 483 151 . 593 3626 2050 220 . 238 3415 Core 17672 | . 157 . 702 203 . 130 239 793 1510 430 582 140 268 . 426 1361 212 449 648 919 386 118 . 468 2886 1607 185 . 185 2668 Absorbed by Shields 5067 | . . . . . . . . 122 782 214 298 64 51 . 15 633 144 500 454 655 64 13 . . . 41 . . . 1017 Redirected to Core 15328 | . 148 . 593 145 . 95 214 617 1349 359 527 131 239 . 382 1196 166 379 588 735 327 118 . 408 2520 1444 138 . 185 2325 Ignored by Resistances 12153 | . 60 . 270 75 . 52 128 399 1090 282 386 86 154 . 201 956 226 448 593 701 224 49 . 251 1586 977 . . 132 2827 Regen/Repaired (Parts) 2 | . . . 2 . . . . . . . . . . . . . . . . . . . . . . . . . . . Core Remaining (%) 89 | 100 . 87 . . . 68 . 86 . . . . . . 100 . . . 94 . . . . 100 . . 83 . 88 . Volleys Fired 2006 | 7 60 . 180 22 . 29 68 74 297 88 57 21 22 . 25 203 42 57 106 68 28 9 4 42 206 124 19 . 9 139 Largest 4 | 2 2 . 3 3 . 3 3 3 3 3 3 4 4 . 4 3 4 3 3 3 3 3 3 3 3 3 3 . 4 4 Hottest 290 | 40 55 . 126 126 . 126 126 177 176 174 174 262 215 . 215 198 225 225 225 225 225 225 225 225 225 225 225 . 290 290 Shots Fired 5126 | 14 120 . 400 66 . 51 179 215 832 231 117 53 65 . 70 519 113 158 220 159 72 19 12 114 531 337 39 . 28 392 Gun 1416 | 14 66 . 171 22 . 11 64 73 273 71 37 18 19 . 23 33 33 50 54 42 22 5 4 34 152 100 10 . 9 6 Cannon 3542 | . 54 . 206 43 . 40 113 141 541 146 58 25 40 . 42 479 74 108 152 101 44 10 8 76 374 233 29 . 19 386 Launcher 59 | . . . 23 1 . . 2 1 1 . 10 8 4 . 4 . 5 . . . . . . . . . . . . . Special 109 | . . . . . . . . . 17 14 12 2 2 . 1 7 1 . 14 16 6 4 . 4 5 4 . . . . Kinetic 2074 | 14 120 . 260 43 . 22 117 73 261 71 18 3 20 . 19 163 34 54 60 52 22 5 4 38 192 117 19 . 10 263 Thermal 2880 | . . . 117 22 . 29 60 141 553 146 77 36 39 . 46 349 73 104 146 91 44 10 8 72 334 216 20 . 18 129 Explosive 59 | . . . 23 1 . . 2 1 1 . 10 8 4 . 4 . 5 . . . . . . . . . . . . . Electromagnetic 4 | . . . . . . . . . . . . 4 . . . . . . . . . . . . . . . . . . Robot Hit Streak 111 | 5 17 . 33 16 . 23 57 48 59 44 37 33 45 . 30 38 40 32 51 40 40 55 60 111 48 52 . . 22 46 Robot Miss Streak 4 | 1 1 . 3 2 . 2 2 1 4 2 1 1 1 . 1 3 1 2 1 1 1 . . 3 2 2 . . 1 3 Penetration Max 1 | . . . . . . . . . 1 . . . . . . . . . . . . . . . . . . . . . Secondary Targets . | . . . . . . . . . . . . . . . . . . . . . . . . . . . . . . . Shots Hit Robots 3182 | 10 52 . 187 33 . 23 97 142 515 153 78 39 49 . 56 246 67 89 130 125 55 15 5 87 367 252 . . 23 287 Core Hits 1439 | 7 23 . 83 14 . 12 46 44 193 57 50 21 26 . 33 125 36 43 58 62 22 3 4 45 159 128 . . 6 139 Critical Kills 8 | . . . . . . . 1 . . . . . 1 . . 3 . . . . . . . . 1 1 . . . 1 Critical Parts Destroyed . | . . . . . . . . . . . . . . . . . . . . . . . . . . . . . . . Critical Strikes 135 | . 2 . 4 . . . 4 10 37 6 4 3 6 . 3 11 1 5 5 1 . . . 1 14 5 . . . 13 Burn 50 | . . . . . . . 1 7 22 5 2 3 4 . 1 5 . . . . . . . . . . . . . . Meltdown 7 | . . . . . . . . . . . . . 1 . . 3 . . . . . . . . 1 1 . . . 1 Destroy 1 | . . . . . . . 1 . . . . . . . . . . . . . . . . . . . . . . . Blast 77 | . 2 . 4 . . . 2 3 15 1 2 . 1 . 2 3 1 5 5 1 . . . 1 13 4 . . . 12 Melee Attacks 10 | . 4 . . . . . . 5 1 . . . . . . . . . . . . . . . . . . . . . Impact . | . . . . . . . . . . . . . . . . . . . . . . . . . . . . . . . Slashing 4 | . 4 . . . . . . . . . . . . . . . . . . . . . . . . . . . . . Piercing . | . . . . . . . . . . . . . . . . . . . . . . . . . . . . . . . Sneak Attacks 5 | . . . . . . . . 5 . . . . . . . . . . . . . . . . . . . . . . Combat Hostiles . | . . . . . . . . . . . . . . . . . . . . . . . . . . . . . . . Follow-up Attacks . | . . . . . . . . . . . . . . . . . . . . . . . . . . . . . . . Damage Inflicted 97468 | 87 1039 . 4003 639 . 804 1941 3001 13830 3529 2922 1155 1692 . 1622 8061 2412 3075 3922 4282 1545 347 186 2708 13188 7929 . . 763 12786 Guns 23137 | 87 360 . 1343 169 . 98 601 1133 3930 1006 691 338 399 . 445 437 511 920 1219 1171 611 118 104 889 3689 2469 . . 243 156 Cannons 65818 | . 408 . 1815 470 . 321 1284 1732 8364 2523 1229 497 849 . 916 6542 1400 2082 2703 2426 934 229 82 1819 8740 5460 . . 520 12473 Explosions 8512 | . 271 . 844 . . 385 56 136 1536 . 1002 320 444 . 261 1082 501 73 . 685 . . . . 759 . . . . 157 Melee . | . . . . . . . . . . . . . . . . . . . . . . . . . . . . . . . Ramming 1 | . . . 1 . . . . . . . . . . . . . . . . . . . . . . . . . . . Kinetic 34968 | 87 768 . 2068 338 . 227 1027 571 3524 1074 343 26 339 . 383 2381 764 1119 1221 1271 479 119 55 935 5145 2958 . . 289 7457 Thermal 55699 | . . . 1320 301 . 577 858 2294 8989 2455 1577 724 909 . 978 5286 1147 1883 2701 2326 1066 228 131 1773 7559 4971 . . 474 5172 Explosive 6614 | . 271 . 614 . . . 56 136 1317 . 1002 320 444 . 261 326 501 73 . 685 . . . . 451 . . . . 157 Electromagnetic 186 | . . . . . . . . . . . . 85 . . . 68 . . . . . . . . 33 . . . . . Impact . | . . . . . . . . . . . . . . . . . . . . . . . . . . . . . . . Slashing . | . . . . . . . . . . . . . . . . . . . . . . . . . . . . . . . Piercing . | . . . . . . . . . . . . . . . . . . . . . . . . . . . . . . . Highest Corruption 3 | . . . . . . . . . 1 2 2 1 . . . 3 . . . . . . . . . . . . . . Average Corruption 1 | . . . . . . . . . 1 1 1 1 . . . 1 . . . . . . . . . . . . . . Corruption Purged 9 | . . . . . . . . . 1 . 2 1 . . . 5 . . . . . . . . . . . . . . Corruption Blocked 34 | . . . . . . . . . . . . . . . . . . . . . . . . . 6 20 . . . 8 Effects 45 | . . . . . . . . . 16 9 8 4 . . . 8 . . . . . . . . . . . . . . Message Errors 10 | . . . . . . . . . 2 1 2 1 . . . 4 . . . . . . . . . . . . . . Matter Fused 11 | . . . . . . . . . 3 2 3 2 . . . 1 . . . . . . . . . . . . . . Heat Flow Errors 3 | . . . . . . . . . 1 1 1 . . . . . . . . . . . . . . . . . . . Energy Discharges 9 | . . . . . . . . . 3 4 1 . . . . 1 . . . . . . . . . . . . . . Parts Fused 1 | . . . . . . . . . 1 . . . . . . . . . . . . . . . . . . . . . Data Loss (minor) 5 | . . . . . . . . . 4 . . . . . . 1 . . . . . . . . . . . . . . Data Loss (major) 5 | . . . . . . . . . 2 . 1 1 . . . 1 . . . . . . . . . . . . . . Misfires 1 | . . . . . . . . . . 1 . . . . . . . . . . . . . . . . . . . . Overload Shots . | . . . . . . . . . . . . . . . . . . . . . . . . . . . . . . . Overflow Damage 2298 | . 48 . 88 7 . 58 18 50 524 91 54 4 . . 19 368 13 49 55 94 2 . 45 19 331 58 . . . 303 Projectiles 1446 | . 4 . 34 7 . 11 18 20 141 91 8 4 . . 19 158 13 49 55 94 2 . 45 19 331 58 . . . 265 Explosions 852 | . 44 . 54 . . 47 . 30 383 . 46 . . . . 210 . . . . . . . . . . . . . 38 Melee . | . . . . . . . . . . . . . . . . . . . . . . . . . . . . . . . Knockbacks 186 | . 1 . 9 4 . 2 5 6 28 12 . . 1 . 4 12 3 5 2 7 1 1 . 5 21 14 . . . 43 Impact . | . . . . . . . . . . . . . . . . . . . . . . . . . . . . . . . Kinetic 171 | . 1 . 9 4 . 2 5 6 26 12 . . 1 . 4 11 3 4 2 6 1 1 . 5 20 14 . . . 34 Secondary 15 | . . . . . . . . . 2 . . . . . . 1 . 1 . 1 . . . . 1 . . . . 9 Self-Inflicted Damage 1179 | . 115 . 162 . . 34 . . 257 . 26 . 12 . . 429 . 45 . . . . . . . . . . . 99 Shots 28 | . 2 . 5 . . 1 . . 7 . 1 . 1 . . 8 . 1 . . . . . . . . . . . 2 Rammed 1 | . . . 1 . . . . . . . . . . . . . . . . . . . . . . . . . . . Targets Rammed 1 | . . . 1 . . . . . . . . . . . . . . . . . . . . . . . . . . . Kicked . | . . . . . . . . . . . . . . . . . . . . . . . . . . . . . . . Crushed . | . . . . . . . . . . . . . . . . . . . . . . . . . . . . . . . Highest Temperature 620 | . . . 101 67 . 294 133 620 316 251 220 209 109 . 117 383 283 463 327 273 239 91 118 258 413 343 12 . 6 250 Average Temperature 73 | . . . 21 19 . 87 45 167 26 36 24 82 39 . 41 79 85 119 131 103 78 37 56 97 83 93 5 . 4 47 Received Heat Transfer 5225 | . . . 360 54 . 72 117 342 869 136 162 63 52 . 216 429 97 148 86 261 102 18 . 78 886 317 . . 39 321 Effects 35 | . . . . . . . . 16 . . . . . . . 4 . 3 6 2 . . . . 2 2 . . . . Shutdowns 3 | . . . . . . . . 2 . . . . . . . . . . . . . . . . 1 . . . . . Energy Bleed 13 | . . . . . . . . 3 . . . . . . . 2 . 1 2 2 . . . . 1 2 . . . . Interference 6 | . . . . . . . . 1 . . . . . . . 1 . . 4 . . . . . . . . . . . Matter Decay 1 | . . . . . . . . 1 . . . . . . . . . . . . . . . . . . . . . . Short Circuit 3 | . . . . . . . . 1 . . . . . . . 1 . 1 . . . . . . . . . . . . Damage (minor) 4 | . . . . . . . . 3 . . . . . . . . . 1 . . . . . . . . . . . . Damage (major) 4 | . . . . . . . . 4 . . . . . . . . . . . . . . . . . . . . . . Damage (core) 1 | . . . . . . . . 1 . . . . . . . . . . . . . . . . . . . . . . Siege Activations . | . . . . . . . . . . . . . . . . . . . . . . . . . . . . . . . Robots Corrupted . | . . . . . . . . . . . . . . . . . . . . . . . . . . . . . . . Combat Hostiles . | . . . . . . . . . . . . . . . . . . . . . . . . . . . . . . . Parts Fried 4 | . . . . . . . . . . . . . . . . 1 . . . . . . . . 1 2 . . . . Impact Corruptions 1 | . . . . . . . . . . . . . . . . . . . . . . . . . 1 . . . . . Robots Melted 10 | . . . . . . . . . 2 1 . . 1 . . 3 . . . . . . . . 1 1 . . . 1 Combat Hostiles 9 | . . . . . . . . . 1 1 . . 1 . . 3 . . . . . . . . 1 1 . . . 1 Parts Melted 112 | . . . 1 . . 1 1 12 28 9 3 1 4 . 2 13 3 2 2 2 . . . 5 9 11 . . . 3 Heat Transferred 77807 | . . . 2259 518 . 833 1554 4629 15150 3827 2261 1258 1665 . 1554 7753 1591 2405 3265 2997 1332 296 157 2257 9465 6290 . . 592 3899 Parts Sabotaged 2 | . . . . . . . . . . . . . . . . . . . . . . . . . . 2 . . . . Parts Stolen . | . . . . . . . . . . . . . . . . . . . . . . . . . . . . . . . Parts Stripped . | . . . . . . . . . . . . . . . . . . . . . . . . . . . . . . . Power Chain Reactions 1 | . . . 1 . . . . . . . . . . . . . . . . . . . . . . . . . . . Alert | -11 -10 -10 -9 -9 -9 -8 -8 -8 -7 -7 -7 -7 -7 -7 -6 -6 -6 -6 -6 -5 -5 -5 -5 -4 -4 -4 -4 -3 -3 -2 ------- Run | Yrd Mat Min Mat Min Exi Min Mat Gar Fac Gar Fac Low Low Zio Pro Fac Gar Fac Gar Fac Upp Upp Zhi Pro Fac Arm Lab Res DSF Res Peak Influence 2669 | 30 309 101 607 475 . 369 692 1412 1467 2150 1567 . . . . 1826 1862 2166 2669 1584 . . . . 832 860 . 9 90 1109 Initial 1336 | . 16 101 33 200 . . 78 304 642 905 978 . . . . . 893 819 1336 1214 . . . . . 273 . . 5 44 Average 807 | 13 155 101 372 384 . 268 405 926 841 1608 1099 . . . . 981 1489 1328 2216 1252 . . . . 373 568 . 2 36 535 Maximum Alert Level 5 | . 1 . 2 2 . 1 2 4 4 5 4 . . . . 5 5 5 5 4 . . . . 3 3 . . . 4 Low Security (%) 11 | 100 68 100 14 . . 19 18 . 1 . . . . . . 10 . . . . . . . . 29 . . 100 100 11 Level 1 15 | . 31 . 40 48 . 80 21 5 4 . . . . . . 7 . . . . . . . . 24 11 . . . 35 Level 2 24 | . . . 45 51 . . 60 12 37 . . . . . . 10 . . . . . . . . 37 78 . . . 16 Level 3 17 | . . . . . . . . 49 24 13 43 . . . . 20 19 28 . . . . . . 8 10 . . . 36 Level 4 21 | . . . . . . . . 32 33 32 55 . . . . 40 32 46 14 99 . . . . . . . . . . Level 5 8 | . . . . . . . . . . 54 . . . . . 9 48 9 85 . . . . . . . . . . . High Security . | . . . . . . . . . . . . . . . . . . 16 . . . . . . . . . . . . Max Security . | . . . . . . . . . . . . . . . . . . . . . . . . . . . . . . . Squads Dispatched 144 | . . . 8 . . . . . 39 . 9 . 1 . . 20 . 13 . 7 . . . 1 18 14 . . . 14 Investigation 41 | . . . 7 . . . . . 10 . 2 . . . . 8 . 4 . . . . . . 2 6 . . . 2 Extermination 31 | . . . . . . . . . 9 . 3 . . . . 3 . 1 . . . . . . 9 2 . . . 4 Reinforcement 19 | . . . 1 . . . . . 5 . 1 . . . . 1 . 2 . 1 . . . . 3 3 . . . 2 Assault 34 | . . . . . . . . . 5 . 3 . 1 . . 6 . 6 . 3 . . . 1 4 3 . . . 2 Garrison 19 | . . . . . . . . . 10 . . . . . . 2 . . . 3 . . . . . . . . . 4 Intercept . | . . . . . . . . . . . . . . . . . . . . . . . . . . . . . . . Searches Triggered . | . . . . . . . . . . . . . . . . . . . . . . . . . . . . . . . Construction Impeded 3 | . . . 1 . . . . . 1 . . . . . . . . . . 1 . . . . . . . . . . Haulers Reinforced 3 | . . . . . . . . . 1 . . . . . . . . 1 . . . . . . 1 . . . . . Active Scanning Responses . | . . . . . . . . . . . . . . . . . . . . . . . . . . . . . . . Cargo Convoy Interrupts 2 | . . . . . . . . . . . 1 . . . . . . . . . . . . . 1 . . . . . Stealth | -11 -10 -10 -9 -9 -9 -8 -8 -8 -7 -7 -7 -7 -7 -7 -6 -6 -6 -6 -6 -5 -5 -5 -5 -4 -4 -4 -4 -3 -3 -2 --------- Run | Yrd Mat Min Mat Min Exi Min Mat Gar Fac Gar Fac Low Low Zio Pro Fac Gar Fac Gar Fac Upp Upp Zhi Pro Fac Arm Lab Res DSF Res Distress Signals 9 | . . . 1 . . . . . 1 . . . . . . . . . 1 1 . . . . 1 2 . . . 2 Communications Jammed 388 | . . . . . . . . . 1 . 199 . . . . 104 . 11 . . . . . . 24 17 . . 2 30 Distress Signals 379 | . . . . . . . . . 1 . 199 . . . . 99 . 11 . . . . . . 22 17 . . . 30 Times Spotted 956 | . 9 . 48 7 . 7 24 31 131 32 62 7 11 3 12 87 21 62 52 52 16 3 . 26 86 73 . . 5 89 Peak Tracking Total 17 | . 3 . 5 3 . 4 4 9 8 4 15 2 6 3 5 5 3 17 16 11 4 1 . 8 6 8 . . 4 12 Tactical Retreats 26 | . . . . . . . 2 1 5 . 3 . 1 . . . . 3 1 4 . . . . 1 1 . . . 4 Traps | -11 -10 -10 -9 -9 -9 -8 -8 -8 -7 -7 -7 -7 -7 -7 -6 -6 -6 -6 -6 -5 -5 -5 -5 -4 -4 -4 -4 -3 -3 -2 ------- Run | Yrd Mat Min Mat Min Exi Min Mat Gar Fac Gar Fac Low Low Zio Pro Fac Gar Fac Gar Fac Upp Upp Zhi Pro Fac Arm Lab Res DSF Res Traps Triggered 24 | . . . 2 . . . . 1 4 3 . . . . . 1 . 1 4 . . . . . 1 4 . . 1 2 Indirectly 2 | . . . . . . . . . 2 . . . . . . . . . . . . . . . . . . . . . Trap Hack Attempts . | . . . . . . . . . . . . . . . . . . . . . . . . . . . . . . . Triggered . | . . . . . . . . . . . . . . . . . . . . . . . . . . . . . . . Disarmed 4 | . . . . . . . . . . . . . . . . . . . . . . . . . 4 . . . . . Reprogrammed 15 | . . . . . . . . . . . . . . . . 15 . . . . . . . . . . . . . . Reused 3 | . . . . . . . . . . . . . . . . 3 . . . . . . . . . . . . . . Traps Extracted . | . . . . . . . . . . . . . . . . . . . . . . . . . . . . . . . Installed . | . . . . . . . . . . . . . . . . . . . . . . . . . . . . . . . Triggered 6 | . . . . . . . . . . . . 1 . . . 3 . . . . . . . . 2 . . . . . Machines | -11 -10 -10 -9 -9 -9 -8 -8 -8 -7 -7 -7 -7 -7 -7 -6 -6 -6 -6 -6 -5 -5 -5 -5 -4 -4 -4 -4 -3 -3 -2 ---------- Run | Yrd Mat Min Mat Min Exi Min Mat Gar Fac Gar Fac Low Low Zio Pro Fac Gar Fac Gar Fac Upp Upp Zhi Pro Fac Arm Lab Res DSF Res Machines Disabled 411 | . 16 . 36 7 . 21 9 7 80 7 23 . 1 . . 91 7 21 12 9 . . 1 1 47 8 . . . 7 Max in Single Turn 12 | . 2 . 4 4 . 10 1 1 10 1 12 . 1 . . 11 2 3 1 2 . . 1 . 4 1 . . . 1 Garrison Access 4 | . . . . . . . . . . . . . . . . 1 . 1 . . . . . . . . . . . 2 Garrison Relay 22 | . . . . . . . . 6 . 4 . . . . . . 4 . 8 . . . . . . . . . . . Phase Generator 1 | . . . . . . . . . . . . . . . . . 1 . . . . . . . . . . . . . Machines Repaired . | . . . . . . . . . . . . . . . . . . . . . . . . . . . . . . . Machines Dismantled . | . . . . . . . . . . . . . . . . . . . . . . . . . . . . . . . Machines Sabotaged . | . . . . . . . . . . . . . . . . . . . . . . . . . . . . . . . Overloaded Fab Kills . | . . . . . . . . . . . . . . . . . . . . . . . . . . . . . . . Hacking | -11 -10 -10 -9 -9 -9 -8 -8 -8 -7 -7 -7 -7 -7 -7 -6 -6 -6 -6 -6 -5 -5 -5 -5 -4 -4 -4 -4 -3 -3 -2 --------- Run | Yrd Mat Min Mat Min Exi Min Mat Gar Fac Gar Fac Low Low Zio Pro Fac Gar Fac Gar Fac Upp Upp Zhi Pro Fac Arm Lab Res DSF Res Machines Accessed 132 | . 5 . 10 . 1 1 7 4 24 1 6 . 1 . . 18 2 7 3 4 . 1 4 . 12 11 . 2 . 8 Terminals 92 | . 5 . 9 . . 1 6 4 14 1 3 . . . . 12 2 4 3 4 . . . . 10 6 . 2 . 6 Fabricators 18 | . . . . . . . . . 6 . 1 . . . . 3 . 2 . . . . . . 1 5 . . . . Repair Stations 1 | . . . 1 . . . . . . . . . . . . . . . . . . . . . . . . . . . Recycling Units . | . . . . . . . . . . . . . . . . . . . . . . . . . . . . . . . Scanalyzers 3 | . . . . . . . . . . . 1 . . . . 1 . . . . . . . . 1 . . . . . Garrison Access 11 | . . . . . . . 1 . 4 . 1 . . . . 2 . 1 . . . . . . . . . . . 2 Total Hacks 603 | . 14 . 49 . 1 5 28 15 129 4 27 . 1 . . 99 5 26 10 24 . 1 10 . 63 54 . 6 . 32 Successful 389 | . 8 . 29 . 1 4 15 7 78 2 19 . 1 . . 72 2 15 2 16 . 1 10 . 53 35 . 2 . 17 Failed 214 | . 6 . 20 . . 1 13 8 51 2 8 . . . . 27 3 11 8 8 . . . . 10 19 . 4 . 15 Catastrophic 27 | . . . 2 . . . 3 2 10 . 3 . . . . 2 2 . 3 . . . . . . . . . . . Database Lockouts . | . . . . . . . . . . . . . . . . . . . . . . . . . . . . . . . Manual 337 | . 14 . 38 . 1 6 27 8 66 4 9 . . . . 51 5 14 10 14 . . . . 32 12 1 2 . 23 Terminals 486 | . 14 . 43 . . 5 27 15 104 4 13 . . . . 77 5 17 10 24 . . . . 58 34 . 6 . 30 Fabricators 61 | . . . . . . . . . 18 . 6 . . . . 8 . 7 . . . . . . 2 20 . . . . Repair Stations 6 | . . . 6 . . . . . . . . . . . . . . . . . . . . . . . . . . . Recycling Units . | . . . . . . . . . . . . . . . . . . . . . . . . . . . . . . . Scanalyzers 19 | . . . . . . . . . . . 6 . . . . 10 . . . . . . . . 3 . . . . . Garrison Access 18 | . . . . . . . 1 . 7 . 2 . . . . 4 . 2 . . . . . . . . . . . 2 Terminal Hacks 214 | . 3 . 14 . 1 3 6 4 43 1 3 . 1 . . 39 2 5 2 11 . 1 10 . 34 20 . 1 . 10 Record 5 | . . . . . . . . . . . . . . . . 1 . . . . . . 2 . 1 1 . . . . Part Schematic 20 | . . . . . . . . . 7 . . . . . . 2 . . . 3 . . 4 . 3 . . . . 1 Robot Schematic 9 | . . . . . . 3 . . 5 . . . . . . 1 . . . . . . . . . . . . . . Robot Analysis 6 | . . . . . . . . . . . 1 . . . . 1 . 1 . . . . . . . 1 . . . 2 Prototype ID Bank 16 | . . . . . . . . . 2 . 1 . . . . 2 . 1 . . . . 4 . 4 . . . . 2 Open Door 4 | . . . . . . . . 1 . . . . 1 . . . . . . . . 1 . . . 1 . . . . Open DSF 1 | . . . . . . . . . . . . . . . . . . . . . . . . . . . . 1 . . Level Access Points 4 | . . . . . . . . . . . . . . . . 1 . . . . . . . . 1 2 . . . . Branch Access Points 7 | . . . 1 . . . 1 . 1 . . . . . . 1 . . . 1 . . . . . 2 . . . . Emergency Access Points 7 | . . . . . . . . 1 2 . . . . . . 1 . . . . . . . . 2 1 . . . . Machine Index 3 | . . . . . . . . . . . . . . . . 2 . . . . . . . . . . . . . 1 Terminal Index 8 | . 1 . 1 . . . . . 1 . . . . . . 1 . 1 . 1 . . . . 1 1 . . . . Fabricator Index 4 | . . . . . . . . . 1 . . . . . . . . 1 . . . . . . 1 1 . . . . Garrison Index 4 | . 1 . . . . . 1 . 1 . . . . . . 1 . . . . . . . . . . . . . . Alert Level 5 | . . . 4 . . . . . 1 . . . . . . . . . . . . . . . . . . . . . Unreport Threat 32 | . . . 4 . . . 1 . 7 . 1 . . . . 6 1 1 1 4 . . . . 2 3 . . . 1 Locate Traps 2 | . . . . . . . . . . . . . . . . . . . . . . . . . 1 1 . . . . Disarm Traps 2 | . . . . . . . . . . . . . . . . . . . . . . . . . 2 . . . . . Reprogram Traps 3 | . . . . . . . . . . . . . . . . 3 . . . . . . . . . . . . . . Dispatch Records 12 | . . . . . . . . . 2 . . . . . . 3 . . . . . . . . 5 1 . . . 1 Maintenance Status 2 | . . . . . . . . . . . . . . . . 1 . . . . . . . . 1 . . . . . Security Status 2 | . . . . . . . . . 1 . . . . . . 1 . . . . . . . . . . . . . . Surveillance Status 2 | . . . . . . . . . . . . . . . . . . . . . . . . . . 2 . . . . Patrol Status 3 | . . . . . . . . . 2 . . . . . . 1 . . . . . . . . . . . . . . Transport Status 2 | . . . . . . . . . 1 . . . . . . . . . . . . . . . 1 . . . . . Investigation Status 3 | . . . . . . . . . 2 . . . . . . . . . . . . . . . 1 . . . . . Reinforcement Status 3 | . . . 1 . . . . . 1 . . . . . . 1 . . . . . . . . . . . . . . Assault Status 1 | . . . . . . . . . . . . . . . . . . . . . . . . . 1 . . . . . Recall Investigation 5 | . . . 2 . . . . . . . . . . . . 2 . . . . . . . . . . . . . 1 Recall Extermination 2 | . . . . . . . . . . . . . . . . . . . . . . . . . 2 . . . . . Recall Assault 5 | . . . . . . . . . . . . . . . . 1 . . . . . . . . 2 1 . . . 1 Hauler Manifests 3 | . . . . . . . . . 1 . . . . . . 2 . . . . . . . . . . . . . . Registered Components 3 | . . . . . . . . . 1 . . . . . . . . . . 1 . . . . 1 . . . . . Registered Prototypes 3 | . . . . . . . . . 1 . . . . . . 1 . . . 1 . . . . . . . . . . Zone Layout 15 | . 1 . 1 . . . 3 . 3 . . . . . . 3 . . . . . . . . 2 2 . . . . Garrison Registry 4 | . . . . . . . . 1 . 1 . . . . . . 1 . 1 . . . . . . . . . . . Security Stations 1 | . . . . . . . . 1 . . . . . . . . . . . . . . . . . . . . . . Derelict Proto ID Bank 1 | . . . . . 1 . . . . . . . . . . . . . . . . . . . . . . . . . Fabricator Hacks 42 | . . . . . . . . . 12 . 6 . . . . 7 . 4 . . . . . . 2 11 . . . . Network Status 2 | . . . . . . . . . . . . . . . . 1 . . . . . . . . . 1 . . . . Load Schematic 20 | . . . . . . . . . 6 . 3 . . . . 3 . 2 . . . . . . 1 5 . . . . Build 20 | . . . . . . . . . 6 . 3 . . . . 3 . 2 . . . . . . 1 5 . . . . Repair Station Hacks 6 | . . . 6 . . . . . . . . . . . . . . . . . . . . . . . . . . . Scan Component 3 | . . . 3 . . . . . . . . . . . . . . . . . . . . . . . . . . . Repair 3 | . . . 3 . . . . . . . . . . . . . . . . . . . . . . . . . . . Recycling Unit Hacks . | . . . . . . . . . . . . . . . . . . . . . . . . . . . . . . . Scanalyzer 17 | . . . . . . . . . . . 5 . . . . 10 . . . . . . . . 2 . . . . . Insert Component 8 | . . . . . . . . . . . 2 . . . . 5 . . . . . . . . 1 . . . . . Analyze 9 | . . . . . . . . . . . 3 . . . . 5 . . . . . . . . 1 . . . . . Garrison Access Hacks 13 | . . . . . . . 1 . 5 . 1 . . . . 3 . 1 . . . . . . . . . . . 2 Unlock Access 8 | . . . . . . . 1 . 3 . 1 . . . . 2 . 1 . . . . . . . . . . . . Seal Access 2 | . . . . . . . . . . . . . . . . . . . . . . . . . . . . . . 2 Coupler Status 3 | . . . . . . . . . 2 . . . . . . 1 . . . . . . . . . . . . . . Unauthorized Hacks 97 | . 5 . 9 . . 1 8 3 18 1 4 . . . . 13 . 5 . 5 . . . . 15 4 . 1 . 5 Terminals 92 | . 5 . 9 . . 1 8 3 16 1 3 . . . . 12 . 4 . 5 . . . . 15 4 . 1 . 5 Assimilate 10 | . . . . . . . 2 . 2 . . . . . . . . . . 1 . . . . 5 . . . . . Botnet 82 | . 5 . 9 . . 1 6 3 14 1 3 . . . . 12 . 4 . 4 . . . . 10 4 . 1 . 5 Fabricators . | . . . . . . . . . . . . . . . . . . . . . . . . . . . . . . . Repair Stations . | . . . . . . . . . . . . . . . . . . . . . . . . . . . . . . . Recycling Units . | . . . . . . . . . . . . . . . . . . . . . . . . . . . . . . . Scanalyzers . | . . . . . . . . . . . . . . . . . . . . . . . . . . . . . . . Garrison Access 5 | . . . . . . . . . 2 . 1 . . . . 1 . 1 . . . . . . . . . . . . Reprogram 5 | . . . . . . . . . 2 . 1 . . . . 1 . 1 . . . . . . . . . . . . Data Cores Recovered 2 | . . . . . . . . . . . . . . . . . . . . . . . . . 1 . . . . 1 Used 1 | . . . . . . . . . . . . . . . . . . . . . . . . . 1 . . . . . Hacking Detections 101 | . 4 . 10 . . 1 4 3 20 1 6 . . . . 14 1 5 2 4 . . . . 10 9 . 1 . 6 Full Trace Events 37 | . . . 5 . . . 1 1 7 . 2 . . . . 6 1 3 2 . . . . . 2 5 . . . 2 Feedback Events 2 | . . . . . . . . . . . . . . . . 1 1 . . . . . . . . . . . . . Corruption 1 | . . . . . . . . . . . . . . . . 1 . . . . . . . . . . . . . . Hackware Fried 1 | . . . . . . . . . . . . . . . . . 1 . . . . . . . . . . . . . Feedback Blocked . | . . . . . . . . . . . . . . . . . . . . . . . . . . . . . . . Robot Schematics Acquired 9 | . . . . . . 3 . . 5 . . . . . . 1 . . . . . . . . . . . . . . Robots Built 33 | . . . . . . . . . 10 . 4 . . . . 5 . 2 . . . . . . 2 10 . . . . Authchips 2 | . . . . . . . . . . . 2 . . . . . . . . . . . . . . . . . . . Time 1804 | . . . . . . . . . 481 . 209 . . . . 267 . 213 . . . . . . 84 550 . . . . Total Robot Build Rating 157 | . . . . . . . . . 39 . 19 . . . . 23 . 8 . . . . . . 12 56 . . . . Part Schematics Acquired 27 | . . . . . . . . . 7 . 2 . . . . 6 . . . 3 . . 4 . 4 . . . . 1 Parts Built . | . . . . . . . . . . . . . . . . . . . . . . . . . . . . . . . Authchips . | . . . . . . . . . . . . . . . . . . . . . . . . . . . . . . . Time . | . . . . . . . . . . . . . . . . . . . . . . . . . . . . . . . Total Part Build Rating . | . . . . . . . . . . . . . . . . . . . . . . . . . . . . . . . Parts Repaired 3 | . . . 3 . . . . . . . . . . . . . . . . . . . . . . . . . . . Time 109 | . . . 109 . . . . . . . . . . . . . . . . . . . . . . . . . . . Parts Recycled . | . . . . . . . . . . . . . . . . . . . . . . . . . . . . . . . Recycled Matter . | . . . . . . . . . . . . . . . . . . . . . . . . . . . . . . . Retrieved Matter . | . . . . . . . . . . . . . . . . . . . . . . . . . . . . . . . Retrieved Components . | . . . . . . . . . . . . . . . . . . . . . . . . . . . . . . . Parts Scanalyzed 8 | . . . . . . . . . . . 2 . . . . 5 . . . . . . . . 1 . . . . . Part Schematics Acquired 7 | . . . . . . . . . . . 2 . . . . 4 . . . . . . . . 1 . . . . . Parts Damaged 1 | . . . . . . . . . . . 1 . . . . . . . . . . . . . . . . . . . Bothacking | -11 -10 -10 -9 -9 -9 -8 -8 -8 -7 -7 -7 -7 -7 -7 -6 -6 -6 -6 -6 -5 -5 -5 -5 -4 -4 -4 -4 -3 -3 -2 ------------ Run | Yrd Mat Min Mat Min Exi Min Mat Gar Fac Gar Fac Low Low Zio Pro Fac Gar Fac Gar Fac Upp Upp Zhi Pro Fac Arm Lab Res DSF Res Used RIF Installer 5 | . . . . . . . . 1 . 2 . . . . . . 1 . 1 . . . . . . . . . . . Hotswap 1 | . . . . . . . . . . 1 . . . . . . . . . . . . . . . . . . . . Threat Obfuscator 1 | . . . . . . . . . . . . . . . . . . . 1 . . . . . . . . . . . Robot Detection 1 | . . . . . . . . . . . . . . . . . 1 . . . . . . . . . . . . . Watcher Feeds 1 | . . . . . . . . . . 1 . . . . . . . . . . . . . . . . . . . . Robots Hacked 55 | . . . . . . . . . 14 . 6 1 . . 1 5 . . 10 12 2 3 . 1 . . . . . . Non-combat 26 | . . . . . . . . . 9 . 3 1 . . 1 2 . . . 8 . 2 . . . . . . . . Combat 29 | . . . . . . . . . 5 . 3 . . . . 3 . . 10 4 2 1 . 1 . . . . . . Robot Hacks Applied 57 | . . . . . . . . . 14 . 8 1 . . 1 5 . . 10 12 2 3 . 1 . . . . . . parse_system 1 | . . . . . . . . . . . . 1 . . . . . . . . . . . . . . . . . . drop_inventory 3 | . . . . . . . . . . . . . . . . . . . . 3 . . . . . . . . . . check_alert 1 | . . . . . . . . . 1 . . . . . . . . . . . . . . . . . . . . . purge_threat 2 | . . . . . . . . . . . 2 . . . . . . . . . . . . . . . . . . . overload_power 1 | . . . . . . . . . . . . . . . . 1 . . . . . . . . . . . . . . disable_weapons 3 | . . . . . . . . . . . . . . . . . . . 1 1 . . . 1 . . . . . . reboot_system 1 | . . . . . . . . . . . . . . . . . . . . . . 1 . . . . . . . . formatsys_low 12 | . . . . . . . . . 5 . 3 . . . 1 . . . . 1 . 2 . . . . . . . . formatsys_high 33 | . . . . . . . . . 8 . 3 . . . . 4 . . 9 7 2 . . . . . . . . . Relay Couplers Released 42 | . . . . . . . . 11 . 8 . . . . . 1 6 1 14 . . . . . . . . . . 1 Machine Destruction 36 | . . . . . . . . 9 . 6 . . . . . . 5 1 14 . . . . . . . . . . 1 Programmers 6 | . . . . . . . . 2 . 2 . . . . . 1 1 . . . . . . . . . . . . . Attached 13 | . . . . . . . . 4 . 2 . . . . . 1 . . 5 1 . . . . . . . . . . Fabnet Peak Effective % . | . . . . . . . . . . . . . . . . . . . . . . . . . . . . . . . Robots Rewired 14 | . . . . . . . . 3 . 6 . . 1 . . 1 . . . . 1 . . 2 . . . . . . Allies Hacked 13 | . . . . . . . . . 2 . 3 . . . . 2 3 . . . . . . . . . . . 1 2 Hacks Repelled 1 | . . . . . . . . . . . . . . . . . . . . . . . . . . . . . . 1 Allies | -11 -10 -10 -9 -9 -9 -8 -8 -8 -7 -7 -7 -7 -7 -7 -6 -6 -6 -6 -6 -5 -5 -5 -5 -4 -4 -4 -4 -3 -3 -2 -------- Run | Yrd Mat Min Mat Min Exi Min Mat Gar Fac Gar Fac Low Low Zio Pro Fac Gar Fac Gar Fac Upp Upp Zhi Pro Fac Arm Lab Res DSF Res Total Allies 121 | . . 2 . . . . . 4 28 8 12 . 1 . 1 15 4 5 10 8 3 2 . 2 3 10 . . 1 2 Largest Group 17 | . . . 2 . . . . 3 7 10 17 . 1 . 1 6 8 11 7 8 6 8 8 8 3 5 3 3 4 5 Highest-Rated Group 633 | . . . 40 . . . . 54 192 385 633 . 32 . 24 225 302 401 229 240 189 235 230 230 108 226 162 162 203 210 Highest-Rated Ally 99 | . . . 31 . . . . 20 40 80 80 . 32 . 24 99 62 62 41 65 64 64 59 59 54 54 54 54 54 64 Total Orders 3 | . . . . . . . . . 1 . . . . . . . . . . . . . . . 2 . . . . . AID 1 | . . . . . . . . . 1 . . . . . . . . . . . . . . . . . . . . . EXPLORE 2 | . . . . . . . . . . . . . . . . . . . . . . . . . 2 . . . . . Ally Attacks 747 | . . . 4 . . . . 8 121 12 91 . . . . 81 47 122 42 38 6 10 . 18 17 52 . . 13 65 Total Damage 22018 | . . . 84 . . . . 161 3445 713 2375 . . . . 2904 1547 2673 1454 942 288 346 . 602 524 2290 . . 492 1178 Kills 149 | . . . . . . . . 2 31 6 19 . . . . 21 10 14 10 4 3 4 . 2 4 12 . . 2 5 Allies Corrupted 4 | . . . . . . . . . 1 . . . . . . 1 . . . 1 . . . 1 . . . . . . Allies Melted 2 | . . . . . . . . . 1 . . . . . . . . . . . . . . 1 . . . . . . Intel | -11 -10 -10 -9 -9 -9 -8 -8 -8 -7 -7 -7 -7 -7 -7 -6 -6 -6 -6 -6 -5 -5 -5 -5 -4 -4 -4 -4 -3 -3 -2 ------- Run | Yrd Mat Min Mat Min Exi Min Mat Gar Fac Gar Fac Low Low Zio Pro Fac Gar Fac Gar Fac Upp Upp Zhi Pro Fac Arm Lab Res DSF Res Robot Analysis Total 6 | . . . . . . . . . . . 1 . . . . 1 . 1 . . . . . . . 1 . . . 2 Derelict Logs Recovered 17 | . . 2 . 3 . . . . . . . 2 2 . 2 . . . . . 3 1 . 2 . . . . . . Drone Launches 3 | . . . . . . . . . . . . . . . . . . . . . . . . . 3 . . . . . Drone Recoveries 2 | . . . . . . . . . . . . . . . . . . . . . . . . . 2 . . . . . Exploration | -11 -10 -10 -9 -9 -9 -8 -8 -8 -7 -7 -7 -7 -7 -7 -6 -6 -6 -6 -6 -5 -5 -5 -5 -4 -4 -4 -4 -3 -3 -2 ------------- Run | Yrd Mat Min Mat Min Exi Min Mat Gar Fac Gar Fac Low Low Zio Pro Fac Gar Fac Gar Fac Upp Upp Zhi Pro Fac Arm Lab Res DSF Res Turns Passed 31884 | 84 767 122 1843 491 458 757 559 1088 4628 868 1318 964 631 50 1579 2521 512 898 1274 751 972 622 288 933 3344 1421 125 23 178 1815 Spaces Moved 24174 | 51 673 143 1116 497 466 609 369 824 2398 652 1087 892 839 86 1250 2087 460 901 933 497 689 487 195 781 2548 925 62 41 173 1443 Core 496 | 5 . . . . . . . 70 421 . . . . . . . . . . . . . . . . . . . . . Treads . | . . . . . . . . . . . . . . . . . . . . . . . . . . . . . . . Legs . | . . . . . . . . . . . . . . . . . . . . . . . . . . . . . . . Wheels 2815 | 46 673 143 1116 497 340 . . . . . . . . . . . . . . . . . . . . . . . . . Hover . | . . . . . . . . . . . . . . . . . . . . . . . . . . . . . . . Flight 20863 | . . . . . 126 609 369 754 1977 652 1087 892 839 86 1250 2087 460 901 933 497 689 487 195 781 2548 925 62 41 173 1443 Fastest Speed 42 | 50 80 80 80 80 50 50 50 50 50 50 50 50 50 50 50 50 50 50 50 50 50 50 50 50 50 50 50 50 50 42 Average Speed 61 | 77 80 80 80 80 71 50 50 81 111 50 50 50 50 50 50 50 50 50 60 50 50 54 87 50 50 50 50 50 50 45 Slowest Speed 450 | 80 80 80 95 80 80 50 50 450 400 50 50 50 50 50 50 50 50 150 150 150 50 150 150 50 50 50 50 50 50 50 Overloaded Moves . | . . . . . . . . . . . . . . . . . . . . . . . . . . . . . . . Propulsion Burnouts . | . . . . . . . . . . . . . . . . . . . . . . . . . . . . . . . Robots Hopped 72 | . . . . . . 5 2 . 16 . 3 1 1 . . 10 . 6 1 3 1 . . . 19 . . . . 4 Cave-ins Triggered 1 | . . . . . . . . . . . . . . . . . . . . . . . . . . . 1 . . . Teleports 1 | . . . . . . . . . . . . . . . . . . . . . . . 1 . . . . . . . Exploration Rate (%) 62 | 3 78 39 83 96 93 95 40 89 72 82 33 88 86 12 96 62 76 24 83 22 88 73 62 96 61 64 7 2 96 46 Regions Visited 30 Branch Regions 14 Pre-discovered Areas 7 | . . 1 . 2 . . . . . . . 1 1 . 1 . . . . . . . 1 . . . . . . . Known Exits Taken 24 | . 1 1 1 1 1 1 1 . 1 . 1 1 1 1 1 1 . 1 . 1 1 1 1 1 1 1 1 1 . . Unknown Exits Taken 1 | 1 . . . . . . . . . . . . . . . . . . . . . . . . . . . . . . Scrap Searched 16 | . . 1 . 1 . 1 . . . . . 3 1 . 3 . . . . . 2 3 . 1 . . . . . . Spaces Dug 310 | . . . 26 . . . . . 3 . . 2 . . . 210 . . . . . . . . 49 4 11 . 2 3 Terrain Destroyed 2310 | . 84 . 351 19 . 43 62 3 317 4 77 82 32 . 53 500 78 65 10 52 16 3 . 18 282 27 11 . 3 118 Melee . | . . . . . . . . . . . . . . . . . . . . . . . . . . . . . . . Projectile 383 | . . . . . . . . . 42 4 9 6 4 . 9 58 4 22 10 14 16 3 . 18 62 27 11 . 3 61 AOE 1927 | . 84 . 351 19 . 43 62 3 275 . 68 76 28 . 44 442 74 43 . 38 . . . . 220 . . . . 57 Terrain Rammed . | . . . . . . . . . . . . . . . . . . . . . . . . . . . . . . . Walls Destroyed . | . . . . . . . . . . . . . . . . . . . . . . . . . . . . . . . Machines Disabled . | . . . . . . . . . . . . . . . . . . . . . . . . . . . . . . . Actions | -11 -10 -10 -9 -9 -9 -8 -8 -8 -7 -7 -7 -7 -7 -7 -6 -6 -6 -6 -6 -5 -5 -5 -5 -4 -4 -4 -4 -3 -3 -2 --------- Run | Yrd Mat Min Mat Min Exi Min Mat Gar Fac Gar Fac Low Low Zio Pro Fac Gar Fac Gar Fac Upp Upp Zhi Pro Fac Arm Lab Res DSF Res Total 37099 | 80 774 151 1735 539 589 1012 602 1067 3713 1021 1758 1359 1002 92 2146 3128 655 1218 1443 874 1262 834 302 1237 4179 1620 123 42 243 2299 Wait 9410 | 13 23 . 363 13 120 373 151 89 835 218 588 411 116 7 832 750 109 238 283 276 529 332 90 364 1250 365 43 2 28 599 Move 24009 | 50 672 142 1115 496 465 598 365 823 2367 651 1080 889 836 85 1249 2066 459 888 930 490 686 486 194 780 2515 924 61 40 172 1435 Hop 65 | . . . . . . 5 2 . 15 . 3 1 1 . . 10 . 6 1 3 1 . . . 13 . . . . 4 Pick Up 37 | . 1 1 4 . . . 1 1 10 2 4 . . . . 3 2 1 1 1 1 1 . . 2 . . . 1 . Fast Attach 112 | 9 6 2 11 2 1 1 2 7 4 2 1 4 1 . . 16 4 1 8 4 . . 4 . 7 4 . . 2 9 Attach 23 | . . 1 1 . . . . . 5 1 2 . . . . 3 2 1 1 1 . 2 . . 3 . . . . . Detach 18 | . . . 1 . . . . . 3 . 1 . 3 . . 1 1 1 3 . . . 2 . 2 . . . . . Swap 86 | . . 1 5 1 . 1 3 7 14 . 8 9 2 . 6 6 3 . 3 3 3 2 . . 7 . . . . 2 Drop 109 | 1 4 4 8 . 3 1 3 6 15 2 3 3 3 . . 9 6 1 8 4 . 2 1 . 9 2 . . 2 9 Fire 2006 | 7 60 . 180 22 . 29 68 74 297 88 57 21 22 . 25 203 42 57 106 68 28 9 4 42 206 124 19 . 9 139 Melee 10 | . 4 . . . . . . 5 1 . . . . . . . . . . . . . . . . . . . . . Ram 1 | . . . 1 . . . . . . . . . . . . . . . . . . . . . . . . . . . Kick . | . . . . . . . . . . . . . . . . . . . . . . . . . . . . . . . Crush . | . . . . . . . . . . . . . . . . . . . . . . . . . . . . . . . Escape Stasis 201 | . . . . . . . . 2 21 18 . . . . . . . . 42 . . . . . 18 64 . . 18 18 Rewire 3 | . . . . . . . . . 1 . . . . . . . . . . 2 . . . . . . . . . . Trap . | . . . . . . . . . . . . . . . . . . . . . . . . . . . . . . . Miscellaneous 1009 | . 4 . 46 5 . 4 7 53 125 39 11 21 18 . 34 61 27 24 57 22 14 . 7 51 147 137 . . 11 84 Route ------- -11/Scrapyard -10/Materials (discovered 4 exits: *Mat x2 / *Min x2) -10/Mines -9/Materials (discovered 4 exits: *Mat x2 / *Min x2) -9/Mines (discovered 4 exits: *Mat x2 / *Exi / *Zio) -9/Exiles (discovered 2 exits: *Min x2) -8/Mines (discovered 2 exits: *Mat x2) -8/Materials -8/Garrison (discovered 3 exits: *Fac x3) -7/Factory (discovered 9 exits: *Fac x2 / *Sto x2 / *Low x2 / Gar / Gar / Gar) -7/Garrison (discovered 3 exits: *Fac x3) -7/Factory (discovered 4 exits: *Fac x2 / *Low / Gar) -7/Lower Caves -7/Lower Caves (discovered 2 exits: *Fac / *Zio) -7/Zion -6/Proximity Caves -6/Factory (discovered 9 exits: *Fac x4 / *Low x2 / *Ext x2 / Gar) -6/Garrison (discovered 3 exits: *Fac x3) -6/Factory (discovered 2 exits: *Fac / Gar) -6/Garrison (discovered 3 exits: *Fac x3) -5/Factory (discovered 3 exits: *Fac / *Upp x2) -5/Upper Caves -5/Upper Caves (discovered 2 exits: *Fac / *Zhi) -5/Zhirov -4/Proximity Caves -4/Factory (discovered 7 exits: *Res x4 / *Upp x2 / *Arm) -4/Armory (discovered 3 exits: *Res x2 / *Lab) -4/Lab -3/Research -3/DSF -2/Research (discovered 3 exits: *Acc x3) History --------- Turn | Location | Event 1 | -11/Scrapyard | Upgraded with Propulsion slot (x2) 1 | -11/Scrapyard | Upgraded with Utility slot (x2) 1 | -11/Scrapyard | Upgraded with Weapon slot (x1) 7 | -11/Scrapyard | Discovered new exit (range 16) 85 | -11/Scrapyard | Entered Materials 201 | -10/Materials | Discovered new exit (range 5) 304 | -10/Materials | Build established: Mutant 454 | -10/Materials | Discovered new exit (range 16) 561 | -10/Materials | Discovered new exit (range 7) 578 | -10/Materials | Discovered new exit (range 5) 724 | -10/Materials | Reached level 2 724 | -10/Materials | Upgraded with Utility slot (x1) 851 | -10/Materials | Identified exit to Mines 852 | -10/Materials | Entered Mines 913 | -10/Mines | Learned location of Mines (-9) 924 | -10/Mines | Learned Materials terminal intel 934 | -10/Mines | A weapon hastily lodged in a ceiling crevice suddenly fell to the ground 970 | -10/Mines | Discovered new exit (range 6) 973 | -10/Mines | Identified exit to Materials 974 | -10/Mines | Entered Materials 974 | -9/Materials | Accompanied by 2 allies 975 | -9/Materials | Loaded intel: 12 terminal locations 976 | -9/Materials | Reached level 3 976 | -9/Materials | Reached level 4 978 | -9/Materials | Upgraded with Utility slot (x1) 978 | -9/Materials | Upgraded with Weapon slot (x1) 979 | -9/Materials | Led the pair of lost Derelicts to an unsafe place 1005 | -9/Materials | Identified exit to Mines 1187 | -9/Materials | Reached level 5 1328 | -9/Materials | Discovered new exit (range 15) 1346 | -9/Materials | Identified exit to Materials 1493 | -9/Materials | Reached level 6 1739 | -9/Materials | Discovered exit to Materials (range 9) 1798 | -9/Materials | Build established: Hacker-Gunner 1846 | -9/Materials | Reached level 7 2168 | -9/Materials | Repaired Adv. Beam Cannon 2168 | -9/Materials | Repaired Grenade Launcher 2200 | -9/Materials | Repaired Hvy. Assault Rifle 2226 | -9/Materials | Reached level 8 2229 | -9/Materials | Upgraded with Utility slot (x1) 2817 | -9/Materials | Entered Mines 2826 | -9/Mines | Reached level 9 2859 | -9/Mines | Discovered exit to Materials (range 11) 2859 | -9/Mines | Learned location of 1 exit from Lower Caves 2890 | -9/Mines | Discovered exit to Materials (range 15) 2903 | -9/Mines | Discovered new exit (range 11) 3021 | -9/Mines | Learned location of Zion (-7) 3094 | -9/Mines | A Derelict revealed a hidden shortcut to a safe place 3098 | -9/Mines | Identified exit to Zion 3131 | -9/Mines | Learned Materials non-interactive machine intel 3147 | -9/Mines | Learned location of Storage (-7) 3308 | -9/Mines | Identified exit to Exiles 3308 | -9/Mines | Entered Exiles 3321 | -9/Exiles | Discovered new exit (range 17) 3330 | -9/Exiles | Met 8R-AWN 3343 | -9/Exiles | Met EX-HEX 3408 | -9/Exiles | Met EX-DEC 3424 | -9/Exiles | Visited The Gauntlet 3661 | -9/Exiles | Met EX-BIN 3674 | -9/Exiles | Aligned with FarCom system 3675 | -9/Exiles | Given EX-Vault access code 3693 | -9/Exiles | Opened EX-Vault 3697 | -9/Exiles | Upgraded with Propulsion slot (x1) 3702 | -9/Exiles | Found Flying Fortress v7 3715 | -9/Exiles | Warned to stay clear of 0b10 Research branches 3761 | -9/Exiles | Discovered new exit (range 10) 3766 | -9/Exiles | Identified exit to Mines 3766 | -9/Exiles | Left Exiles lab with Flying Fortress v7 3766 | -9/Exiles | Entered Mines 3788 | -8/Mines | Reached level 10 3805 | -8/Mines | Discovered exit to Materials (range 13) 3821 | -8/Mines | Discovered exit to Materials (range 4) 4005 | -8/Mines | Build established: Hacker-Scout 4253 | -8/Mines | Reached level 11 4523 | -8/Mines | Entered Materials 4524 | -8/Materials | Loaded intel: 46 non-interactive machine locations 4624 | -8/Materials | Reached level 12 4754 | -8/Materials | Core integrity fell below 50% 4799 | -8/Materials | Destroyed 7 combat bots 5082 | -8/Materials | Identified exit to Garrison 5082 | -8/Materials | Entered Garrison 5084 | -8/Garrison | Reached level 13 5087 | -8/Garrison | Upgraded with Utility slot (x1) 5109 | -8/Garrison | Triggered checkpoint 5133 | -8/Garrison | Rescued a captive Derelict 5137 | -8/Garrison | Garrison Relay disabled 5160 | -8/Garrison | Triggered checkpoint 5226 | -8/Garrison | Core integrity fell below 20% 5248 | -8/Garrison | Destroyed 8 combat bots 5300 | -8/Garrison | Triggered checkpoint 5495 | -8/Garrison | Build established: Hacker-Skirmisher 5499 | -8/Garrison | Discovered new exit (range 13) 5674 | -8/Garrison | Discovered new exit (range 72) 5674 | -8/Garrison | Discovered new exit (range 75) 5674 | -8/Garrison | Discovered new exit (range 7) 5674 | -8/Garrison | Learned Factory security intel 5721 | -8/Garrison | Installed Relay Interface Framework 5737 | -8/Garrison | Triggered checkpoint 5762 | -8/Garrison | Triggered checkpoint 5811 | -8/Garrison | Garrison Relay disabled 5856 | -8/Garrison | Garrison Relay disabled 5901 | -8/Garrison | Build established: Hacker-Scout 5919 | -8/Garrison | Garrison Relay disabled 5919 | -8/Garrison | Reached level 14 5951 | -8/Garrison | Garrison Relay disabled 5986 | -8/Garrison | Triggered checkpoint 6060 | -8/Garrison | Triggered checkpoint 6069 | -8/Garrison | Garrison Relay disabled 6132 | -8/Garrison | Identified exit to Factory 6170 | -8/Garrison | Entered Factory 6170 | -7/Factory | Accompanied by 3 allies 6324 | -7/Factory | Reached level 15 6553 | -7/Factory | Build established: Hacker-Skirmisher 6694 | -7/Factory | Lost 4 allies 6970 | -7/Factory | Discovered new exit (range 15) 7094 | -7/Factory | Identified exit to Lower Caves 7927 | -7/Factory | Reached level 16 7930 | -7/Factory | Garrison activated, responded to threat 8101 | -7/Factory | Identified exit to Garrison 8170 | -7/Factory | First assault squad dispatched 8388 | -7/Factory | Fabricated O-24 Administrator? 8525 | -7/Factory | Discovered new exit (range 15) 8565 | -7/Factory | Build established: Hacker-Scout 8628 | -7/Factory | Garrison activated, responded to threat 8879 | -7/Factory | Reached level 17 8898 | -7/Factory | Garrison activated, responded to threat 8921 | -7/Factory | Fabricated P-60 Hacker? 9052 | -7/Factory | Upgraded with Weapon slot (x1) 9110 | -7/Factory | Lost 3 allies 9410 | -7/Factory | Fabricated P-60 Hacker? 9523 | -7/Factory | Hacker 4c assimilated hostile G-47 Trooper 9792 | -7/Factory | Discovered new exit (range 10) 9997 | -7/Factory | Fabricated P-60 Hacker? 10004 | -7/Factory | Identified exit to Factory 10056 | -7/Factory | Discovered new exit (range 5) 10076 | -7/Factory | Identified exit to Storage 10096 | -7/Factory | Garrison activated, responded to threat 10121 | -7/Factory | Reached level 18 10190 | -7/Factory | Identified exit to Garrison 10191 | -7/Factory | Lost 5 allies 10285 | -7/Factory | Fabricated P-60 Hacker? 10641 | -7/Factory | Fabricated I-36 Angel? 10700 | -7/Factory | Destroyed 7 combat bots 10703 | -7/Factory | Discovered exit to Factory (range 17) 10781 | -7/Factory | Identified exit to Garrison 10798 | -7/Factory | Entered Garrison 10798 | -7/Garrison | Accompanied by 4 allies 10812 | -7/Garrison | Triggered checkpoint 10831 | -7/Garrison | Expanded RIF knowledge: Watcher Feeds 10836 | -7/Garrison | Triggered checkpoint 10855 | -7/Garrison | P-60 Hacker assimilated allied Smith 4e 10890 | -7/Garrison | Expanded RIF knowledge: Hotswap 10911 | -7/Garrison | Garrison Relay disabled 10966 | -7/Garrison | Triggered checkpoint 10998 | -7/Garrison | Triggered checkpoint 11042 | -7/Garrison | Destroyed 11 combat bots 11093 | -7/Garrison | Discovered new exit (range 56) 11093 | -7/Garrison | Discovered new exit (range 65) 11093 | -7/Garrison | Discovered new exit (range 22) 11100 | -7/Garrison | Triggered checkpoint 11121 | -7/Garrison | Garrison Relay disabled 11192 | -7/Garrison | Triggered checkpoint 11206 | -7/Garrison | Garrison Relay disabled 11217 | -7/Garrison | Found embedded Infiltrators 11446 | -7/Garrison | Triggered checkpoint 11449 | -7/Garrison | Reached level 19 11457 | -7/Garrison | Upgraded with Utility slot (x1) 11512 | -7/Garrison | Triggered checkpoint 11529 | -7/Garrison | Garrison Relay disabled 11647 | -7/Garrison | Identified exit to Factory 11666 | -7/Garrison | Entered Factory 11666 | -7/Factory | Accompanied by 9 allies 11924 | -7/Factory | Fabricated P-70 Sage (x2) 12020 | -7/Factory | Fabricated I-36 Angel (x1) 12081 | -7/Factory | Fabricated O-24 Administrator (x1) 12239 | -7/Factory | Identified exit to Garrison 12286 | -7/Factory | Discovered exit to Lower Caves (range 31) 12338 | -7/Factory | Build established: Commander-Scout 12339 | -7/Factory | Sage 4b assimilated hostile S-27 Virus 12339 | -7/Factory | Sage 4a assimilated hostile S-27 Virus 12495 | -7/Factory | Discovered exit to Factory (range 13) 12809 | -7/Factory | Lost 3 allies 12847 | -7/Factory | Cargo convoy interrupted 12866 | -7/Factory | First assault squad dispatched 12908 | -7/Factory | Discovered exit to Factory (range 15) 12939 | -7/Factory | Lost 17 allies 12984 | -7/Factory | Entered Lower Caves 12985 | -7/Lower Caves | Identified exit to Lower Caves 12988 | -7/Lower Caves | Learned location of Extension (-6) 12998 | -7/Lower Caves | Spotted B-75 Beast 13004 | -7/Lower Caves | Core integrity fell below 50% 13015 | -7/Lower Caves | Destroyed B-75 Beast 13057 | -7/Lower Caves | Learned 8 Factory zone layouts 13205 | -7/Lower Caves | Build established: Hacker-Scout 13682 | -7/Lower Caves | Found Alien Artifact 13682 | -7/Lower Caves | Identified Core Expander 13682 | -7/Lower Caves | Installed Core Expander, added new Power slot 13948 | -7/Lower Caves | Entered another Lower Caves area 13950 | -7/Lower Caves | Attracted the attention of an 0b10 checkpoint 14218 | -7/Lower Caves | Discovered exit to Factory (range 17) 14445 | -7/Lower Caves | Found Prototype Device 14445 | -7/Lower Caves | Identified Heart of Steel 14486 | -7/Lower Caves | Attracted the attention of an 0b10 outpost 14522 | -7/Lower Caves | Encountered a Warlord checkpoint 14523 | -7/Lower Caves | Discovered exit to Zion (range 16) 14574 | -7/Lower Caves | Learned 8 Factory zone layouts 14579 | -7/Lower Caves | Entered Zion 14604 | -7/Zion | RIF detected upon attempting to enter Zion 14604 | -7/Zion | Attacked by Zionites 14604 | -7/Zion | Spotted SW-I5L(B) 14604 | -7/Zion | Spotted NM-5U2(B) 14625 | -7/Zion | Discovered new exit (range 9) 14629 | -7/Zion | Identified exit to Proximity Caves 14629 | -7/Zion | Entered Proximity Caves 14631 | -6/Proximity Caves | Reached level 20 14896 | -6/Proximity Caves | Spotted B-75 Beast 14903 | -6/Proximity Caves | Destroyed B-75 Beast 14991 | -6/Proximity Caves | Learned 8 Factory zone layouts 15245 | -6/Proximity Caves | Discovered exit to Factory (range 16) 16208 | -6/Proximity Caves | Entered Factory 16209 | -6/Factory | Identified exit to Extension 16209 | -6/Factory | Identified exit to Factory 16227 | -6/Factory | Discovered new exit (range 16) 16240 | -6/Factory | Identified exit to Lower Caves 16459 | -6/Factory | Heart of Steel transformed into Warbot 16560 | -6/Factory | Discovered exit to Factory (range 13) 16736 | -6/Factory | Reached level 21 16736 | -6/Factory | Upgraded with Utility slot (x1) 16766 | -6/Factory | Garrison activated, responded to threat 16808 | -6/Factory | Identified exit to Garrison 17064 | -6/Factory | Found Prototype Launcher 17064 | -6/Factory | Identified Rocket Array 17258 | -6/Factory | First assault squad dispatched 17355 | -6/Factory | Core integrity fell below 50% 17363 | -6/Factory | Fabricated P-60 Hacker (x2) 18298 | -6/Factory | Reached level 22 18340 | -6/Factory | Spotted B-75 Beast 18348 | -6/Factory | Allies destroyed B-75 Beast 18462 | -6/Factory | Fabricated P-70 Sage? 18626 | -6/Factory | Fabricated O-24 Administrator (x1) 18685 | -6/Factory | Sage 5b assimilated hostile B-48 Gladiator 18728 | -6/Factory | Identified exit to Garrison 18729 | -6/Factory | Entered Garrison 18729 | -6/Garrison | Accompanied by 6 allies 18738 | -6/Garrison | Expanded RIF knowledge: Robot Detection 18747 | -6/Garrison | Triggered checkpoint 18768 | -6/Garrison | Discovered new exit (range 71) 18768 | -6/Garrison | Discovered new exit (range 55) 18768 | -6/Garrison | Discovered new exit (range 102) 18774 | -6/Garrison | Garrison Relay disabled 18822 | -6/Garrison | Triggered checkpoint 18824 | -6/Garrison | Sage 5b assimilated hostile G-50 Soldier 18831 | -6/Garrison | Triggered checkpoint 18837 | -6/Garrison | Triggered checkpoint 18843 | -6/Garrison | Triggered checkpoint 18877 | -6/Garrison | Sage 5a assimilated hostile G-50 Soldier 18900 | -6/Garrison | Spotted B-75 Beast 18926 | -6/Garrison | Allies destroyed B-75 Beast 18983 | -6/Garrison | Triggered checkpoint 18993 | -6/Garrison | Garrison Relay disabled 19039 | -6/Garrison | Sage 5a assimilated hostile G-50 Soldier 19117 | -6/Garrison | Phase Generator disabled 19130 | -6/Garrison | Garrison Relay disabled 19139 | -6/Garrison | Triggered checkpoint 19139 | -6/Garrison | Imp. Hacking Suite fried by hacking feedback 19157 | -6/Garrison | Garrison Relay disabled 19181 | -6/Garrison | Found embedded Infiltrators 19184 | -6/Garrison | Identified exit to Factory 19241 | -6/Garrison | Entered Factory 19241 | -6/Factory | Accompanied by 8 allies 19304 | -6/Factory | Identified exit to Garrison 19413 | -6/Factory | Spotted B-75 Beast 19444 | -6/Factory | Destroyed B-75 Beast 19845 | -6/Factory | Fabricated P-60 Hacker (x2) 19907 | -6/Factory | Discovered exit to Factory (range 18) 19941 | -6/Factory | First assault squad dispatched 19988 | -6/Factory | Reached level 23 19991 | -6/Factory | High security lockdown imminent 20056 | -6/Factory | Upgraded with Utility slot (x1) 20071 | -6/Factory | High security lockdown engaged 20109 | -6/Factory | Lost 11 allies 20139 | -6/Factory | Entered Garrison 20159 | -6/Garrison | Triggered checkpoint 20160 | -6/Garrison | Garrison Relay disabled 20306 | -6/Garrison | Triggered checkpoint 20383 | -6/Garrison | Triggered checkpoint 20400 | -6/Garrison | Garrison Relay disabled 20417 | -6/Garrison | Discovered exit to Factory (range 17) 20436 | -6/Garrison | Expanded RIF knowledge: Threat Obfuscation 20489 | -6/Garrison | Triggered checkpoint 20527 | -6/Garrison | Triggered checkpoint 20545 | -6/Garrison | Garrison Relay disabled 20573 | -6/Garrison | Garrison Relay disabled 20581 | -6/Garrison | Garrison Relay disabled 20587 | -6/Garrison | Garrison Relay disabled 20619 | -6/Garrison | Garrison Relay disabled 20696 | -6/Garrison | Discovered exit to Factory (range 10) 20763 | -6/Garrison | Triggered checkpoint 20763 | -6/Garrison | Discovered exit to Factory (range 55) 20763 | -6/Garrison | Discovered exit to Factory (range 37) 20763 | -6/Garrison | Discovered exit to Factory (range 24) 20856 | -6/Garrison | Lost 4 allies 20893 | -6/Garrison | Triggered checkpoint 20905 | -6/Garrison | Rescued a captive Derelict 20933 | -6/Garrison | Garrison Relay disabled 21021 | -6/Garrison | Triggered checkpoint 21413 | -6/Garrison | Entered Factory 21413 | -5/Factory | Accompanied by 6 allies 21413 | -5/Factory | Discovered new exit (range 17) 21421 | -5/Factory | Identified exit to Upper Caves 21445 | -5/Factory | Found Prototype Processor 21445 | -5/Factory | Identified Exp. Targeting Computer 21668 | -5/Factory | Garrison activated, responded to threat 21713 | -5/Factory | First assault squad dispatched 21788 | -5/Factory | Core integrity fell below 50% 21790 | -5/Factory | Lost 9 allies 21818 | -5/Factory | Reached level 24 21828 | -5/Factory | Destroyed 10 combat bots 21831 | -5/Factory | Discovered new exit (range 16) 21839 | -5/Factory | Identified exit to Factory 22052 | -5/Factory | Core integrity fell below 20% 22099 | -5/Factory | Destroyed 8 combat bots 22164 | -5/Factory | Entered Upper Caves 22164 | -5/Upper Caves | Accompanied by 3 allies 22489 | -5/Upper Caves | Learned 4 Factory zone layouts 22489 | -5/Upper Caves | Identified exit to Upper Caves 22823 | -5/Upper Caves | Encountered a Warlord checkpoint 23006 | -5/Upper Caves | Learned location of 1 exit from Factory 23006 | -5/Upper Caves | Spotted B-75 Beast 23019 | -5/Upper Caves | Allies destroyed B-75 Beast 23136 | -5/Upper Caves | Entered another Upper Caves area 23136 | -5/Upper Caves | Accompanied by 6 allies 23138 | -5/Upper Caves | Attracted the attention of an 0b10 checkpoint 23143 | -5/Upper Caves | Learned Factory trap positions 23149 | -5/Upper Caves | Discovered exit to Factory (range 18) 23360 | -5/Upper Caves | Encountered a Warlord checkpoint 23650 | -5/Upper Caves | Discovered new exit (range 16) 23671 | -5/Upper Caves | Identified exit to Zhirov 23678 | -5/Upper Caves | Ambushed by wild Derelicts 23758 | -5/Upper Caves | Entered Zhirov 23758 | -5/Zhirov | Accompanied by 8 allies 23758 | -5/Zhirov | Discovered new exit (range 4) 23815 | -5/Zhirov | Learned location of Quarantine (-3) 23888 | -5/Zhirov | Found Alien Artifact 23888 | -5/Zhirov | Identified Transdimensional Reconstructor 23888 | -5/Zhirov | Warped through subspace 23965 | -5/Zhirov | Identified exit to Proximity Caves 24046 | -5/Zhirov | Entered Proximity Caves 24046 | -4/Proximity Caves | Accompanied by 8 allies 24097 | -4/Proximity Caves | Attracted the attention of an 0b10 outpost 24145 | -4/Proximity Caves | Reached level 25 24161 | -4/Proximity Caves | Lost 3 allies 24263 | -4/Proximity Caves | Destroyed 7 combat bots 24432 | -4/Proximity Caves | Learned Research garrison access intel 24979 | -4/Proximity Caves | Entered Factory 24979 | -4/Factory | Accompanied by 3 allies 24980 | -4/Factory | Identified exit to Research 24982 | -4/Factory | Loaded intel: 103 trap records 25330 | -4/Factory | Destroyed 7 combat bots 25380 | -4/Factory | Discovered exit to Research (range 6) 25501 | -4/Factory | Discovered new exit (range 19) 25541 | -4/Factory | Identified exit to Upper Caves 25595 | -4/Factory | P-70 Sage assimilated allied Technician 7a 25664 | -4/Factory | Reached level 26 25734 | -4/Factory | Discovered exit to Upper Caves (range 19) 25759 | -4/Factory | Spotted B-86 Titan 25782 | -4/Factory | Destroyed B-86 Titan 25979 | -4/Factory | First assault squad dispatched 26054 | -4/Factory | Core integrity fell below 50% 26363 | -4/Factory | Destroyed 8 combat bots 26383 | -4/Factory | Cargo convoy interrupted 26469 | -4/Factory | Spotted B-86 Titan 27389 | -4/Factory | Fabricated P-70 Sage (x2) 27594 | -4/Factory | Destroyed B-86 Titan 27995 | -4/Factory | Reached level 27 28035 | -4/Factory | Destroyed 7 combat bots 28216 | -4/Factory | Discovered new exit (range 18) 28305 | -4/Factory | Identified exit to Armory 28323 | -4/Factory | Entered Armory 28324 | -4/Armory | Met VL-GR5, who suggested a friendly competition 28553 | -4/Armory | Spotted B-86 Titan 28559 | -4/Armory | Destroyed 9 combat bots 28576 | -4/Armory | Destroyed B-86 Titan 28650 | -4/Armory | Fabricated P-60 Hacker (x2) 28735 | -4/Armory | Fabricated P-70 Sage? 28839 | -4/Armory | Fabricated P-70 Sage (x2) 28873 | -4/Armory | Lost 3 allies 29073 | -4/Armory | First assault squad dispatched 29152 | -4/Armory | Destroyed 12 combat bots 29187 | -4/Armory | Discovered new exit (range 9) 29201 | -4/Armory | Identified exit to Lab 29314 | -4/Armory | Destroyed 11 combat bots 29561 | -4/Armory | Fabricated P-70 Sage (x2) 29665 | -4/Armory | Fabricated P-70 Sage (x2) 29744 | -4/Armory | Entered Lab 29744 | -4/Lab | Accompanied by 3 allies 29744 | -4/Lab | Discovered exit to Research (range 9) 29746 | -4/Lab | Reached level 28 29751 | -4/Lab | Unable to decrypt terminal 29764 | -4/Lab | Crushed by falling debris 29866 | -4/Lab | Unable to decrypt terminal 29868 | -4/Lab | Unable to decrypt terminal 29869 | -4/Lab | Entered Research 29869 | -3/Research | Accompanied by 3 allies 29870 | -3/Research | Loaded intel: 4 garrison access locations 29890 | -3/Research | Identified exit to DSF 29892 | -3/Research | Entered DSF 29892 | -3/DSF | Accompanied by 3 allies 29906 | -3/DSF | Reached level 29 29920 | -3/DSF | Additional patrols routed to DSF 29923 | -3/DSF | Discovered new exit (range 16) 29956 | -3/DSF | Identified exit to Research 30030 | -3/DSF | Sage 7h assimilated hostile G-67 Veteran 30070 | -3/DSF | Entered Research 30070 | -2/Research | Accompanied by 4 allies 30072 | -2/Research | Reached level 30 30155 | -2/Research | Discovered new exit (range 18) 30159 | -2/Research | Garrison activated, responded to threat 30413 | -2/Research | Upgraded with Propulsion slot (x1) 30417 | -2/Research | Sage 7h assimilated hostile Y-72 Warden 30430 | -2/Research | Found Prototype Processor 30430 | -2/Research | Identified Exp. Core Analyzer 30859 | -2/Research | Sage 7h assimilated hostile S-43 Plague 30961 | -2/Research | Destroyed 11 combat bots 30996 | -2/Research | Reached level 31 31019 | -2/Research | Spotted B-90 Cyclops 31071 | -2/Research | Destroyed B-90 Cyclops 31074 | -2/Research | Lost 4 allies 31092 | -2/Research | Core integrity fell below 50% 31120 | -2/Research | Destroyed 8 combat bots 31280 | -2/Research | Destroyed 7 combat bots 31531 | -2/Research | Garrison activated, responded to threat 31542 | -2/Research | Spotted B-90 Cyclops 31556 | -2/Research | Destroyed B-90 Cyclops 31570 | -2/Research | First assault squad dispatched 31603 | -2/Research | Discovered new exit (range 19) 31682 | -2/Research | Identified exit to Access 31740 | -2/Research | Discovered exit to Access (range 7) 31806 | -2/Research | Core integrity fell below 20% 31885 | -2/Research | Destroyed by G-73 Enforcer with Phase Gun Last Messages --------------- Penetrated by Slug. K-01 Serf collects debris. G-73 Enforcer knocked back. Destroyed Lgt. Ion Engine. M-13 Machinist destroyed. U-05 Engineer builds a Door. Slug penetrates Wall. W-44 Eye distress signal jammed. K-01 Serf collects debris. G-73 Enforcer Hvy. Laser blasted off. Penetrated by Slug. U-05 Engineer builds a Wall. U-05 Engineer destroyed. R-10 Processor collects Wheel. K-01 Serf collects debris. Penetrated by Slug. Slug penetrates Wall. [Achievement: Tester] [Achievement: Punisher] [Achievement: Rambo] Map ----- +----------------------------------------------------+ | ???????############### ^ = # !#???###### | | #??????# " ! [" * #???##?### | | #??????# # * %%" ##??#?## | | #??????# """ # % % %| |"| ###?## # | | #??????# ! """ " % =%= !##"############ | | #??????# ! """ %#% = !!! %= ] # | | #??????# "" %+ % [* !!! # | | #??????# """ "" # % = !=%= # | | #??????# "R "" # % [ != % + | | #??????# """ "" # % %% % # | | #??????# # % # | | #??????# # % % ### | | #??????############+## % | | #???????# # | | #???????# # ! % """ | | ######### """ "" # A% !% """T | | # ## """ "" # #### ## =###########+### | | # ## """ S" # ##*#### ###?### | | # "" ## """ # ####?##"#######" % % | | # "" ## """ # k #???#?# ##?##### """ [ | | # "" ## """ """ # k ###???###?###?## """ | | # S ## """ # ################ """ | | # "" ## """ # # ##??## | | # "" ## # # ##?### | | # "" ## *# # #?##?# | | # ########+#+#### @# """ ############## | | # # gg##[! + T" #?#####?####?# | | # # h=[=! # """ #####?####?### | | # # !#g%[* R # #?#?###??###?# | | ###+#### i[g/g*[! # ###??#?####### | | # kw %#####;###################?#?##?#####? | | ! # % ##% #? ??#?###????##?###?##?### | | # ## #??????##??##?????#??#?#### | | # ## """ "#??? ##??#??######???#?#?#? | | # ## """ T#?? ##??##########??#?###? | | # ## """ "#??????? ? ######## | | ###+#### #????###?? ? ? ??###????# | | # #??????#??? ?? ????#?#?##?? | | # #??????#? ? ? ? ??##??##?# | | # #????????? ??? ? ?#?##??## | | ##########?????????? ? ??? ??###?#? | | """ """ #????????????????????? ?? ?? ?????? | | """ """ #???????????????????????????#??????? | | """ """ #??????????????????????????????????? | | #??????????????????????????????????? | | #??????????????????????????????????? | | #??????????????????????????????????? | | #??????????????????????????????????? | | ########## #??????????????????????????????????? | | #?????# #??????????????????????????????????? | +----------------------------------------------------+ Best States ------------- Heat Dissipation 97 Energy Generation 60 Energy Capacity 930 Matter Stores 500 Matter Capacity 500 Sight Range 20 Robot Scan Range 20 Terrain Scan Range 20 Terrain Scan Density 310 Jamming Range 14 Power Amplification 30 Additional Mass Support 9 EM Shielding 2 Corruption Block 20 Resistance: KI 40 Resistance: TH 50 Resistance: EX 35 Resistance: EM 20 Resistance: I 20 Resistance: S 20 Resistance: P 20 Evasion (%) 61 Targeting Accuracy 5 Core Analysis 11 Offensive Hacking 39 Defensive Hacking 29 Relay Coupler Types 4 Relay Coupler Value 248 Authchip Count 2 Item Schematics ----------------- Magnetic Acceleration Cannon | -7/Factory | Hacked Imp. Recalibrator | -7/Factory | Hacked Imp. Kinecellerator | -7/Factory | Hacked Cld. Cesium-ion Thruster | -7/Factory | Hacked Imp. Cooling System | -7/Factory | Hacked Hvy. Missile Launcher | -7/Factory | Hacked Hvy. Plasma Cannon | -7/Factory | Hacked System Restoration Module | -7/Factory | Scanalyzed Component Analysis Suite | -7/Factory | Scanalyzed Imp. Hacking Suite | -6/Factory | Scanalyzed Imp. Terrain Scanner | -6/Factory | Scanalyzed Adv. Weight Redist. System | -6/Factory | Scanalyzed Missile Launcher | -6/Factory | Scanalyzed Hvy. Gauss Cannon | -6/Factory | Hacked Adv. Drone Bay | -6/Factory | Hacked Adv. Force Field | -5/Factory | Hacked Adv. Concussive RPG | -5/Factory | Hacked Adv. Launcher Guidance Computer | -5/Factory | Hacked Assault Drone Bay | -5/Zhirov | Free Exp. Heat Sink | -5/Zhirov | Free Exp. Optical Array | -5/Zhirov | Free Imp. Arc Thrower | -5/Zhirov | Free Quantum Reactor | -4/Factory | Hacked Mapping Drone Bay | -4/Factory | Scanalyzed Particle Reactor | -4/Factory | Hacked Imp. Phase Shifter | -4/Factory | Hacked Biometal Heavy Treads | -2/Research | Hacked Robot Schematics ------------------ O-16 Technician | -8/Mines | Hacked O-24 Administrator | -8/Mines | Hacked M-28 Smith | -8/Mines | Hacked P-60 Hacker | -7/Factory | Hacked I-36 Angel | -7/Factory | Hacked M-14 Sweeper | -7/Factory | Hacked P-70 Sage | -7/Factory | Hacked B-48 Gladiator | -7/Factory | Hacked H-66 Slayer | -6/Factory | Hacked Fabricated ------------ O-24 Administrator | x1 | -7/Factory P-60 Hacker | x2 | -7/Factory P-60 Hacker | x2 | -7/Factory P-60 Hacker | x2 | -7/Factory P-60 Hacker | x2 | -7/Factory I-36 Angel | x1 | -7/Factory P-70 Sage | x2 | -7/Factory | Authchip I-36 Angel | x1 | -7/Factory | Authchip O-24 Administrator | x1 | -7/Factory P-60 Hacker | x2 | -6/Factory P-70 Sage | x2 | -6/Factory O-24 Administrator | x1 | -6/Factory P-60 Hacker | x2 | -6/Factory P-70 Sage | x2 | -4/Factory P-60 Hacker | x2 | -4/Armory P-70 Sage | x2 | -4/Armory P-70 Sage | x2 | -4/Armory P-70 Sage | x2 | -4/Armory P-70 Sage | x2 | -4/Armory Alien Tech Used ----------------- Core Expander Transdimensional Reconstructor Achievements -------------- Giant Slayer Punisher Rambo Tester Challenges ------------ None RPGLIKE | -11 -10 -10 -9 -9 -9 -8 -8 -8 -7 -7 -7 -7 -7 -7 -6 -6 -6 -6 -6 -5 -5 -5 -5 -4 -4 -4 -4 -3 -3 -2 --------- Run | Yrd Mat Min Mat Min Exi Min Mat Gar Fac Gar Fac Low Low Zio Pro Fac Gar Fac Gar Fac Upp Upp Zhi Pro Fac Arm Lab Res DSF Res Levels Raised 30 | . 1 . 6 1 . 2 1 2 4 1 . . . . 1 2 . 1 . 1 . . . 1 2 . 1 . 1 2 XP Earned 50243 | 4000 1635 500 9454 926 169 2397 2700 1961 6373 1021 754 176 243 57 730 2668 569 813 448 1131 302 103 82 1333 2623 1197 503 699 535 4141 XP Spent 48950 | 3985 1485 . 9015 . 1475 3040 . 4000 4565 3385 . . . . . 3050 . 2995 . 1430 . . . . 3055 . 2985 . 1500 2985 Upgrades 105 | 13 4 . 20 . 4 12 . 4 12 5 . . . . . 3 . 2 . 4 . . . . 6 . 8 . 2 6 Propulsion Slot 4 | 2 . . . . 1 . . . . . . . . . . . . . . . . . . . . . . . . 1 Utility Slot 9 | 2 1 . 2 . . . . 1 . 1 . . . . . 1 . 1 . . . . . . . . . . . . Weapon Slot 3 | 1 . . 1 . . . . . 1 . . . . . . . . . . . . . . . . . . . . . Core Integrity 12 | 1 1 . 1 . . 1 . . 1 2 . . . . . . . 1 . . . . . . 1 . 1 . . 2 Heat Dissipation 12 | 3 . . . . . 1 . . 3 . . . . . . . . . . 3 . . . . . . 2 . . . Energy Generation 3 | . . . . . . . . . 1 1 . . . . . . . . . 1 . . . . . . . . . . Energy Storage 8 | . . . 2 . . . . 1 4 1 . . . . . . . . . . . . . . . . . . . . Matter Storage 2 | . . . . . . . . . . . . . . . . . . . . . . . . . . . . . . 2 Mass Support 2 | . . . . . . . . . . . . . . . . 1 . . . . . . . . 1 . . . . . Inventory Capacity 4 | . 1 . 1 . . . . 2 . . . . . . . . . . . . . . . . . . . . . . Sight Range 4 | . 1 . 1 . . 1 . . . . . . . . . . . . . . . . . . 1 . . . . . Sensor Range 10 | 1 . . 1 . 3 5 . . . . . . . . . . . . . . . . . . . . . . . . Terrain Scan Density 3 | . . . 3 . . . . . . . . . . . . . . . . . . . . . . . . . . . Ranged Accuracy 6 | . . . 4 . . 1 . . . . . . . . . . . . . . . . . . . . . . . 1 Hack Attack % 3 | . . . 2 . . . . . 1 . . . . . . . . . . . . . . . . . . . . . Hack Defense % 4 | . . . 2 . . . . . 1 . . . . . . . . . . . . . . . 1 . . . . . KI Resistance % 4 | . . . . . . 1 . . . . . . . . . 1 . . . . . . . . . . 1 . 1 . TH Resistance % 4 | . . . . . . 1 . . . . . . . . . . . . . . . . . . 1 . 1 . 1 . EX Resistance % 3 | . . . . . . 1 . . . . . . . . . . . . . . . . . . 1 . 1 . . . KI Damage % 2 | 1 . . . . . . . . . . . . . . . . . . . . . . . . . . 1 . . . TH Damage % 2 | 1 . . . . . . . . . . . . . . . . . . . . . . . . . . 1 . . . EX Damage % 1 | 1 . . . . . . . . . . . . . . . . . . . . . . . . . . . . . . Protomatter Created 10249 | . 43 . 536 95 . 74 73 432 1204 413 157 251 148 . 277 709 236 461 338 303 269 . 50 487 1180 1213 . . 133 1167 Integrity Restored 21127 | . 68 . 892 102 . 78 150 1131 2558 699 206 453 343 . 736 1366 566 388 1167 473 318 . 150 1151 3194 2924 . . 243 1771 Core 16489 | . 68 . 693 102 . 78 150 1022 1503 548 166 453 249 . 548 1180 283 314 833 440 318 . 150 1061 2790 1703 . . 243 1594 Parts 4638 | . . . 199 . . . . 109 1055 151 40 . 94 . 188 186 283 74 334 33 . . . 90 404 1221 . . . 177 Protomatter Decayed 4734 | . 20 . 88 . . . . 66 709 275 232 65 5 . . 300 240 374 98 161 172 63 . 129 439 748 . . 52 498 Game ------ Seed GaussPoweredMace Manual? 0 Play Time 10:27:20 Cumulative 161.6 hours Start 2024.05.07 @ 22:50:03 End 2024.05.11 @ 10:55:29 Sessions 9 Manual Loads 0 Difficulty Adventurer Special Mode Winter2019/RPGLIKE Game No. 40 Rogue 0 Adventurer 40 Explorer 0 Win Type - Total 2 Types 1/0/1/0/0/0/0/0/0 Lore% 41 Gallery% 51 Achievement% 48 Wizard Run 0 Options --------- Layout 0 ASCII 0 Keyboard 0 Movement Mouse Keybinds 0 Fullscreen 2 Font 18/SmallcapsGlow Map View 76x50 Zoom Use 0% Tactical HUD 0 Map Filters NONE Filters NONE Steam 1 RUN: abfc2993-a8e2-4d8a-98ce-347592113633